Workbook

Sheet Jan
A1: Einnahmen/Ausgaben | E1: Firma Muster | J1: Jan | K1: 2022 | M1: Zusammenfassung
A2: lfd. Nr. | B2: Datum | C2: Kto | D2: Rechnung von/an | E2: Text | F2: E-Brutto | G2: A-Brutto | H2: MwSt. | I2: MwSt. Betr. | J2: Netto | K2: Zuordung Ausg/ Einn. | M2: Ausgaben-/ Einnahmenart | N2: Ausgaben | P2: 0% | Q2: 5% | R2: 10% | S2: 13% | T2: 20%
A3: 1 | B3: 10.1. | C3: Bar | D3: Libro | E3: Fachbücher | G3: 201 | H3: 0.1 | I3: =IF(F3<>"",IF(H3=20%,F3/6,IF(H3=13%,F3/8.6923076,IF(H3=5%,F3/21,IF(H3=10%,F3/11,IF(H3=0%,F3*0))))),IF(H3=20%,G3/6*-1,IF(H3=13%,G3/8.6923076*-1,IF(H3=5%,G3/21*-1,IF(H3=10%,G3/11*-1,IF(H3=0%,G3*0)))))) -> -18.27 | J3: =IF(F3<>"",F3-I3,(G3+I3)*-1) -> -182.73 | K3: Weiterbildung/ Fachliteratur | M3: Investitionen *) | N3: =SUMIF($K$3:$K$49,M3,$J$3:$J$49) -> 120 | P3: =IF(F3<>"",IF(H3=0%,F3-I3),"") ->  | Q3: =IF(F3<>"",IF(H3=5%,F3-I3),"") ->  | R3: =IF(F3<>"",IF(H3=10%,F3-I3),"") ->  | S3: =IF(F3<>"",IF(H3=13%,F3-I3),"") ->  | T3: =IF(F3<>"",IF(H3=20%,F3-I3),"") -> 
A4: =IF(B4<>"",A3+1,"") -> 2 | B4: 12.1. | C4: Bar | D4: Saturn | E4: Digitalkamera | G4: 120 | H4: 0.2 | I4: =IF(F4<>"",IF(H4=20%,F4/6,IF(H4=13%,F4/8.6923076,IF(H4=5%,F4/21,IF(H4=10%,F4/11,IF(H4=0%,F4*0))))),IF(H4=20%,G4/6*-1,IF(H4=13%,G4/8.6923076*-1,IF(H4=5%,G4/21*-1,IF(H4=10%,G4/11*-1,IF(H4=0%,G4*0)))))) -> -20 | J4: =IF(F4<>"",F4-I4,(G4+I4)*-1) -> -100 | K4: Geringw. Wirtschaftsgüter | M4: Abschreibungen (AfA *) | N4: 0 | P4: =IF(F4<>"",IF(H4=0%,F4-I4),"") ->  | Q4: =IF(F4<>"",IF(H4=5%,F4-I4),"") ->  | R4: =IF(F4<>"",IF(H4=10%,F4-I4),"") ->  | S4: =IF(F4<>"",IF(H4=13%,F4-I4),"") ->  | T4: =IF(F4<>"",IF(H4=20%,F4-I4),"") -> 
A5: =IF(B5<>"",A4+1,"") -> 3 | B5: 12.1. | C5: Bar | D5: Druckerei | E5: Visitenkarten | G5: 140 | H5: 0.2 | I5: -23.33 | J5: =IF(F5<>"",F5-I5,(G5+I5)*-1) -> -116.67 | K5: Marketing-Werbung | M5: Wareneinkäufe | N5: 0
A6: 4 | B6: 18.1. | C6: Bank | D6: Büroservice Müller | E6: Schreibtisch | G6: 320 | H6: 0.2 | I6: -53.33 | J6: -266.67 | K6: Geringw. Wirtschaftsgüter | M6: Hilfs- u. Betriebsstoffe | N6: 0
A7: 5 | B7: 2018-01-18 | C7: Bank | D7: Öticket | E7: Eintritt Wirtschaftsevent | G7: 112 | H7: 0.13 | I7: -12.88 | J7: -99.12 | K7: Marketing-Werbung | M7: Personalkosten | N7: 0
A8: 6 | B8: 2018-01-19 | C8: Bank | D8: Pagro | E8: Druckerpatronen | G8: 34 | H8: 0.2 | I8: -5.67 | J8: -28.33 | K8: Büromaterial, Deko, Verp. | M8: Fremdleistungen (z.B. Prov.) | N8: 0
A9: 7 | B9: 2018-01-20 | C9: Bank | D9: Weber OG, Deutschland | E9: Werbeartikel | F9: 620 | H9: 0 | I9: 0 | J9: 620 | K9: Handel | M9: Miete-Betriebskosten | N9: 0 | P9: 620 | Q9: FALSE | R9: FALSE | S9: FALSE | T9: FALSE
A10: 8 | B10: 2018-01-22 | C10: Bar | D10: MediaMarkt | E10: EDV + Zubehör | G10: 720 | H10: 0.2 | I10: -120 | J10: -600 | K10: Investitionen *) | M10: Büromaterial, Deko, Verp. | N10: -28.33
A11: 9 | B11: 2018-01-22 | C11: Bar | D11: MediaMarkt | E11: EDV + Zubehör | G11: -720 | I11: 0 | J11: 720 | K11: Investitionen *) | M11: Marketing-Werbung | N11: -215.79
A12: 10 | B12: 2018-01-23 | C12: Bank | D12: Öticket | E12: Wirtschaftsevent | G12: 112 | H12: 0.13 | I12: -12.88 | J12: -99.12 | K12: Betriebl.-Versicherung | M12: Kommunikation & Porto | N12: -25
A13: 11 | B13: 2018-01-26 | C13: Bank | D13: XY Institution | E13: Seminar-Reihe | F13: 810 | H13: 0.2 | I13: 135 | J13: 675 | K13: Dienstleistungen | M13: Leasing | N13: 0 | P13: FALSE | Q13: FALSE | R13: FALSE | S13: FALSE | T13: 675
A14: 12 | B14: 24.1. | C14: Bank | D14: Müller | E14: Konzept & Beratung | F14: 805 | H14: 0.2 | I14: 134.17 | J14: 670.83 | K14: Dienstleistungen | M14: Bankspesen/Zinsen | N14: 0 | P14: FALSE | Q14: FALSE | R14: FALSE | S14: FALSE | T14: 670.83
A15: 13 | B15: 26.1. | C15: Bar | D15: Vier | E15: Telefon & Internet | G15: 30 | H15: 0.2 | I15: -5 | J15: -25 | K15: Kommunikation & Porto | M15: Beratungskosten | N15: 0
A16: 14 | B16: 27.1. | C16: Bar | D16: Kammer | E16: Grundumlage | G16: 160 | I16: 0 | J16: -160 | K16: Gebühren-Beiträge | M16: Gebühren-Beiträge | N16: -160
A17: 15 | B17: 2018-01-27 | C17: Bank | D17: Uniqa | E17: Betriebsausfallsv. | G17: 60 | I17: 0 | J17: -60 | K17: Betriebl.-Versicherung | M17: KFZ-Betriebskosten | N17: -195
A18: 16 | B18: 2014-01-28 | C18: Bank | D18: Saturn | E18: Bildschirm für PC | G18: 166 | H18: 0.2 | I18: -27.67 | J18: -138.33 | K18: Geringw. Wirtschaftsgüter | M18: Fahrt- und Reisekosten | N18: -965.43
A19: 17 | B19: 31.1. | C19: Bar | D19: Div. Tankstellen | E19: Tanken Jänner | G19: 195 | H19: 0 | I19: 0 | J19: -195 | K19: KFZ-Betriebskosten | M19: Betriebl.-Versicherung | N19: -159.12
A20: 18 | B20: 31.1. | D20: RK | E20: Jänner | G20: 777.56 | H20: 0 | I20: 0 | J20: -777.56 | K20: Fahrt- und Reisekosten | M20: Weiterbildung/ Fachliteratur | N20: -182.73
A21: 19 | B21: 31.1. | D21: RK | E21: Jänner | G21: 195.2 | H21: 0.1 | I21: -17.75 | J21: -177.45 | K21: Fahrt- und Reisekosten | M21: Geringw. Wirtschaftsgüter | N21: -505
A22: 20 | B22: 2018-01-31 | D22: RK | E22: Jänner | G22: 12.5 | H22: 0.2 | I22: -2.08 | J22: -10.42 | K22: Fahrt- und Reisekosten | M22: Gewerbl. Sozialversicherung | N22: 0
I23: 0 | J23: 0 | M23: Div. Steuern u. Abgaben | N23: 0
I24: 0 | J24: 0 | M24: Sonstige Ausgaben | N24: 0
I25: 0 | J25: 0 | M25: A-leer1 | N25: 0
I26: 0 | J26: 0 | M26: A-leer2 | N26: 0
I27: 0 | J27: 0 | M27: A-leer3 | N27: =SUMIF($K$3:$K$49,M27,$J$3:$J$49) -> 0
I28: 0 | J28: 0 | M28: - - - - - - - - - - - - - - - - - - - | O28: Einnahmen
I29: 0 | J29: 0 | M29: Handel | O29: =SUMIF($K$3:$K$49,M29,$J$3:$J$49) -> 620
I30: 0 | J30: 0 | M30: Dienstleistungen | O30: 1345.83
I31: 0 | J31: 0 | M31: Diverse Gutschriften | O31: 0
I32: 0 | J32: 0 | M32: E-leer1 | O32: 0
I33: 0 | J33: 0 | M33: E-leer2 | O33: 0
I34: 0 | J34: 0 | M34: E-leer3 | O34: 0
I35: 0 | J35: 0 | M35: Summe Einnahmen *) | O35: =SUM(O29:O34) -> 1965.83
I36: 0 | J36: 0 | M36: *) gesplittet in Einnahmen mit 0% | O36: =IF(O35<>0,SUM(P3:P500),"") -> 620
I37: 0 | J37: 0 | M37: *) gesplittet in Einnahmen mit 5% | O37: =IF(O35<>0,SUM(Q3:Q500),"") -> 0
I38: 0 | J38: 0 | M38: *) gesplittet in Einnahmen mit 10% | O38: =IF(O35<>0,SUM(R3:R500),"") -> 0
I39: 0 | J39: 0 | M39: *) gesplittet in Einnahmen mit 13% | O39: =IF(O35<>0,SUM(S3:S500),"") -> 0
I40: 0 | J40: 0 | M40: *) gesplittet in Einnahmen mit 20% | O40: =IF(O35<>0,SUM(T3:T500),"") -> 1345.83
I41: 0 | J41: 0 | M41: Summe Ausgaben | N41: =SUM(N3:N27) -> -2316.4
I42: 0 | J42: 0 | M42: =IF(N42>0,"Überschuss der Einnahmen","Überschuss der Ausgaben") -> Überschuss der Ausgaben | N42: =O35+N41 -> -350.57
I43: 0 | J43: 0 | M43: Vorsteuer | O43: =SUMIF(I3:I49,"<0",I3:I49)*(-1) -> 318.86
I44: 0 | J44: 0 | M44: Umsatzsteuer | O44: =SUMIF(I3:I49,">0",I3:I49) -> 269.17
I45: 0 | J45: 0 | M45: Zahllast Finanzamt | O45: =(O43-O44)*-1 -> -49.69
A46: =IF(B46<>"",A45+1,"") ->  | I46: 0 | J46: 0 | P46: =IF(F46<>"",IF(H46=0%,F46-I46),"") ->  | R46: =IF(F46<>"",IF(H46=10%,F46-I46),"") ->  | S46: =IF(F46<>"",IF(H46=13%,F46-I46),"") ->  | T46: =IF(F46<>"",IF(H46=20%,F46-I46),"") -> 
I47: 0 | J47: 0 | P47: =IF(F47<>"",IF(H47=0%,F47-I47),"") ->  | R47: =IF(F47<>"",IF(H47=10%,F47-I47),"") ->  | S47: =IF(F47<>"",IF(H47=13%,F47-I47),"") ->  | T47: =IF(F47<>"",IF(H47=20%,F47-I47),"") -> 
A48: =IF(B48<>"",A47+1,"") ->  | I48: 0 | J48: 0 | M48: ab Zelle 47 kann man bei Bedarf und pro Klick | P48: =IF(F48<>"",IF(H48=0%,F48-I48),"") ->  | R48: =IF(F48<>"",IF(H48=10%,F48-I48),"") ->  | S48: =IF(F48<>"",IF(H48=13%,F48-I48),"") ->  | T48: =IF(F48<>"",IF(H48=20%,F48-I48),"") -> 
A49: =IF(B49<>"",A48+1,"") ->  | I49: 0 | J49: 0 | P49: =IF(F49<>"",IF(H49=0%,F49-I49),"") ->  | Q49: =IF(F49<>"",IF(H49=5%,F49-I49),"") ->  | R49: =IF(F49<>"",IF(H49=10%,F49-I49),"") ->  | S49: =IF(F49<>"",IF(H49=13%,F49-I49),"") ->  | T49: =IF(F49<>"",IF(H49=20%,F49-I49),"") -> 
A50: Summe Einnahmen/ Ausgaben: | F50: =SUM(F3:F49) -> 2235 | G50: =SUM(G3:G49) -> 2635.26 | I50: =SUM(I3:I49) -> -49.69 | J50: =SUM(J3:J49) -> -350.57

Sheet Feb (hidden)
A1: Einnahmen/Ausgaben | E1: =Jan!E1 -> Firma Muster | J1: Feb | K1: =Jan!K1 -> 2022 | M1: Zusammenfassung
A2: lfd. Nr. | B2: Datum | C2: Kto | D2: Rechnung von/an | E2: Text | F2: E-Brutto | G2: A-Brutto | H2: MwSt. | I2: MwSt. Betr. | J2: Netto | K2: Zuordung Ausg/ Einn. | M2: Ausgaben-/ Einnahmenart | N2: Ausgaben | P2: 0% | Q2: 5% | R2: 10% | S2: 13% | T2: 20%
A3: =MAX(Jan!A3:A49)+1 -> 21 | I3: =IF(F3<>"",IF(H3=20%,F3/6,IF(H3=13%,F3/8.6923076,IF(H3=5%,F3/21,IF(H3=10%,F3/11,IF(H3=0%,F3*0))))),IF(H3=20%,G3/6*-1,IF(H3=13%,G3/8.6923076*-1,IF(H3=5%,G3/21*-1,IF(H3=10%,G3/11*-1,IF(H3=0%,G3*0)))))) -> 0 | J3: =IF(F3<>"",F3-I3,(G3+I3)*-1) -> 0 | M3: =Jan!M3 -> Investitionen *) | N3: =SUMIF($K$3:$K$49,M3,$J$3:$J$49) -> 0 | P3: =IF(F3<>"",IF(H3=0%,F3-I3),"") ->  | Q3: =IF(F3<>"",IF(H3=5%,F3-I3),"") ->  | R3: =IF(F3<>"",IF(H3=10%,F3-I3),"") ->  | S3: =IF(F3<>"",IF(H3=13%,F3-I3),"") ->  | T3: =IF(F3<>"",IF(H3=20%,F3-I3),"") -> 
A4: =IF(B4<>"",A3+1,"") ->  | I4: =IF(F4<>"",IF(H4=20%,F4/6,IF(H4=13%,F4/8.6923076,IF(H4=5%,F4/21,IF(H4=10%,F4/11,IF(H4=0%,F4*0))))),IF(H4=20%,G4/6*-1,IF(H4=13%,G4/8.6923076*-1,IF(H4=5%,G4/21*-1,IF(H4=10%,G4/11*-1,IF(H4=0%,G4*0)))))) -> 0 | J4: =IF(F4<>"",F4-I4,(G4+I4)*-1) -> 0 | M4: =Jan!M4 -> Abschreibungen (AfA *) | N4: 0 | P4: =IF(F4<>"",IF(H4=0%,F4-I4),"") ->  | Q4: =IF(F4<>"",IF(H4=5%,F4-I4),"") ->  | R4: =IF(F4<>"",IF(H4=10%,F4-I4),"") ->  | S4: =IF(F4<>"",IF(H4=13%,F4-I4),"") ->  | T4: =IF(F4<>"",IF(H4=20%,F4-I4),"") -> 
A5: =IF(B5<>"",A4+1,"") ->  | I5: 0 | J5: 0 | M5: =Jan!M5 -> Wareneinkäufe | N5: 0
A6: =IF(B6<>"",A5+1,"") ->  | I6: 0 | J6: =IF(F6<>"",F6-I6,(G6+I6)*-1) -> 0 | M6: =Jan!M6 -> Hilfs- u. Betriebsstoffe | N6: 0
I7: 0 | J7: 0 | M7: =Jan!M7 -> Personalkosten | N7: 0
I8: 0 | J8: 0 | M8: =Jan!M8 -> Fremdleistungen (z.B. Prov.) | N8: 0
I9: 0 | J9: 0 | M9: =Jan!M9 -> Miete-Betriebskosten | N9: 0
I10: 0 | J10: 0 | M10: =Jan!M10 -> Büromaterial, Deko, Verp. | N10: 0
I11: 0 | J11: 0 | M11: =Jan!M11 -> Marketing-Werbung | N11: 0
I12: 0 | J12: 0 | M12: =Jan!M12 -> Kommunikation & Porto | N12: 0
I13: 0 | J13: 0 | M13: =Jan!M13 -> Leasing | N13: 0
I14: 0 | J14: 0 | M14: =Jan!M14 -> Bankspesen/Zinsen | N14: 0
I15: 0 | J15: 0 | M15: =Jan!M15 -> Beratungskosten | N15: 0
I16: 0 | J16: 0 | M16: =Jan!M16 -> Gebühren-Beiträge | N16: 0
I17: 0 | J17: 0 | M17: =Jan!M17 -> KFZ-Betriebskosten | N17: 0
I18: 0 | J18: 0 | M18: =Jan!M18 -> Fahrt- und Reisekosten | N18: 0
I19: 0 | J19: 0 | M19: =Jan!M19 -> Betriebl.-Versicherung | N19: 0
I20: 0 | J20: 0 | M20: =Jan!M20 -> Weiterbildung/ Fachliteratur | N20: 0
I21: 0 | J21: 0 | M21: =Jan!M21 -> Geringw. Wirtschaftsgüter | N21: 0
I22: 0 | J22: 0 | M22: =Jan!M22 -> Gewerbl. Sozialversicherung | N22: 0
I23: 0 | J23: 0 | M23: =Jan!M23 -> Div. Steuern u. Abgaben | N23: 0
I24: 0 | J24: 0 | M24: =Jan!M24 -> Sonstige Ausgaben | N24: 0
I25: 0 | J25: 0 | M25: =Jan!M25 -> A-leer1 | N25: 0
I26: 0 | J26: 0 | M26: =Jan!M26 -> A-leer2 | N26: 0
I27: 0 | J27: 0 | M27: =Jan!M27 -> A-leer3 | N27: =SUMIF($K$3:$K$49,M27,$J$3:$J$49) -> 0
I28: 0 | J28: 0 | M28: - - - - - - - - - - - - - - - - - - - | O28: Einnahmen
I29: 0 | J29: 0 | M29: =Jan!M29 -> Handel | O29: =SUMIF($K$3:$K$49,M29,$J$3:$J$49) -> 0
I30: 0 | J30: 0 | M30: =Jan!M30 -> Dienstleistungen | O30: 0
I31: 0 | J31: 0 | M31: =Jan!M31 -> Diverse Gutschriften | O31: 0
I32: 0 | J32: 0 | M32: =Jan!M32 -> E-leer1 | O32: 0
I33: 0 | J33: 0 | M33: =Jan!M33 -> E-leer2 | O33: 0
I34: 0 | J34: 0 | M34: =Jan!M34 -> E-leer3 | O34: 0
I35: 0 | J35: 0 | M35: Summe Einnahmen *) | O35: =SUM(O29:O34) -> 0
A36: =IF(B36<>"",A35+1,"") ->  | I36: 0 | J36: =IF(F36<>"",F36-I36,(G36+I36)*-1) -> 0 | M36: *) gesplittet in Einnahmen mit 0% | O36: =IF(O35<>0,SUM(P3:P500),"") -> 
I37: 0 | J37: 0 | M37: *) gesplittet in Einnahmen mit 5% | O37: =IF(O35<>0,SUM(Q3:Q500),"") -> 
I38: 0 | J38: 0 | M38: *) gesplittet in Einnahmen mit 10% | O38: =IF(O35<>0,SUM(R3:R500),"") -> 
I39: 0 | J39: 0 | M39: *) gesplittet in Einnahmen mit 13% | O39: =IF(O35<>0,SUM(S3:S500),"") -> 
I40: 0 | J40: 0 | M40: *) gesplittet in Einnahmen mit 20% | O40: =IF(O35<>0,SUM(T3:T500),"") -> 
I41: 0 | J41: 0 | M41: Summe Ausgaben | N41: =SUM(N3:N27) -> 0
I42: 0 | J42: 0 | M42: =IF(N42>0,"Überschuss der Einnahmen","Überschuss der Ausgaben") -> Überschuss der Ausgaben | N42: =O35+N41 -> 0
I43: 0 | J43: 0 | M43: Vorsteuer | O43: =SUMIF(I3:I49,"<0",I3:I49)*(-1) -> 0
I44: 0 | J44: 0 | M44: Umsatzsteuer | O44: =SUMIF(I3:I49,">0",I3:I49) -> 0
I45: 0 | J45: 0 | M45: Zahllast Finanzamt | O45: =(O43-O44)*-1 -> 0
I46: 0 | J46: 0
I47: 0 | J47: 0
I48: 0 | J48: 0 | M48: ab Zelle 47 kann man bei Bedarf und pro Klick
A49: =IF(B49<>"",A48+1,"") ->  | I49: =IF(F49<>"",IF(H49=20%,F49/6,IF(H49=13%,F49/8.6923076,IF(H49=5%,F49/21,IF(H49=10%,F49/11,IF(H49=0%,F49*0))))),IF(H49=20%,G49/6*-1,IF(H49=13%,G49/8.6923076*-1,IF(H49=5%,G49/21*-1,IF(H49=10%,G49/11*-1,IF(H49=0%,G49*0)))))) -> 0 | J49: =IF(F49<>"",F49-I49,(G49+I49)*-1) -> 0 | P49: =IF(F49<>"",IF(H49=0%,F49-I49),"") ->  | Q49: =IF(F49<>"",IF(H49=5%,F49-I49),"") ->  | R49: =IF(F49<>"",IF(H49=10%,F49-I49),"") ->  | S49: =IF(F49<>"",IF(H49=13%,F49-I49),"") ->  | T49: =IF(F49<>"",IF(H49=20%,F49-I49),"") -> 
A50: Summe Einnahmen/ Ausgaben: | F50: =SUM(F3:F49) -> 0 | G50: =SUM(G3:G49) -> 0 | I50: =SUM(I3:I49) -> 0 | J50: =SUM(J3:J49) -> 0

Sheet Mar (hidden)
A1: Einnahmen/Ausgaben | E1: =Jan!E1 -> Firma Muster | J1: Mar | K1: =Jan!K1 -> 2022 | M1: Zusammenfassung
A2: lfd. Nr. | B2: Datum | C2: Kto | D2: Rechnung von/an | E2: Text | F2: E-Brutto | G2: A-Brutto | H2: MwSt. | I2: MwSt. Betr. | J2: Netto | K2: Zuordung Ausg/ Einn. | M2: Ausgaben-/ Einnahmenart | N2: Ausgaben | P2: 0% | Q2: 5% | R2: 10% | S2: 13% | T2: 20%
A3: =MAX(Feb!A3:A49)+1 -> 22 | I3: =IF(F3<>"",IF(H3=20%,F3/6,IF(H3=13%,F3/8.6923076,IF(H3=5%,F3/21,IF(H3=10%,F3/11,IF(H3=0%,F3*0))))),IF(H3=20%,G3/6*-1,IF(H3=13%,G3/8.6923076*-1,IF(H3=5%,G3/21*-1,IF(H3=10%,G3/11*-1,IF(H3=0%,G3*0)))))) -> 0 | J3: =IF(F3<>"",F3-I3,(G3+I3)*-1) -> 0 | M3: =Jan!M3 -> Investitionen *) | N3: =SUMIF($K$3:$K$49,M3,$J$3:$J$49) -> 0 | P3: =IF(F3<>"",IF(H3=0%,F3-I3),"") ->  | Q3: =IF(F3<>"",IF(H3=5%,F3-I3),"") ->  | R3: =IF(F3<>"",IF(H3=10%,F3-I3),"") ->  | S3: =IF(F3<>"",IF(H3=13%,F3-I3),"") ->  | T3: =IF(F3<>"",IF(H3=20%,F3-I3),"") -> 
A4: =IF(B4<>"",A3+1,"") ->  | I4: =IF(F4<>"",IF(H4=20%,F4/6,IF(H4=13%,F4/8.6923076,IF(H4=5%,F4/21,IF(H4=10%,F4/11,IF(H4=0%,F4*0))))),IF(H4=20%,G4/6*-1,IF(H4=13%,G4/8.6923076*-1,IF(H4=5%,G4/21*-1,IF(H4=10%,G4/11*-1,IF(H4=0%,G4*0)))))) -> 0 | J4: =IF(F4<>"",F4-I4,(G4+I4)*-1) -> 0 | M4: =Jan!M4 -> Abschreibungen (AfA *) | N4: 0 | P4: =IF(F4<>"",IF(H4=0%,F4-I4),"") ->  | Q4: =IF(F4<>"",IF(H4=5%,F4-I4),"") ->  | R4: =IF(F4<>"",IF(H4=10%,F4-I4),"") ->  | S4: =IF(F4<>"",IF(H4=13%,F4-I4),"") ->  | T4: =IF(F4<>"",IF(H4=20%,F4-I4),"") -> 
A5: =IF(B5<>"",A4+1,"") ->  | I5: 0 | J5: 0 | M5: =Jan!M5 -> Wareneinkäufe | N5: 0
A6: =IF(B6<>"",A5+1,"") ->  | I6: 0 | J6: =IF(F6<>"",F6-I6,(G6+I6)*-1) -> 0 | M6: =Jan!M6 -> Hilfs- u. Betriebsstoffe | N6: 0
I7: 0 | J7: 0 | M7: =Jan!M7 -> Personalkosten | N7: 0
I8: 0 | J8: 0 | M8: =Jan!M8 -> Fremdleistungen (z.B. Prov.) | N8: 0
I9: 0 | J9: 0 | M9: =Jan!M9 -> Miete-Betriebskosten | N9: 0
I10: 0 | J10: 0 | M10: =Jan!M10 -> Büromaterial, Deko, Verp. | N10: 0
I11: 0 | J11: 0 | M11: =Jan!M11 -> Marketing-Werbung | N11: 0
I12: 0 | J12: 0 | M12: =Jan!M12 -> Kommunikation & Porto | N12: 0
I13: 0 | J13: 0 | M13: =Jan!M13 -> Leasing | N13: 0
I14: 0 | J14: 0 | M14: =Jan!M14 -> Bankspesen/Zinsen | N14: 0
I15: 0 | J15: 0 | M15: =Jan!M15 -> Beratungskosten | N15: 0
I16: 0 | J16: 0 | M16: =Jan!M16 -> Gebühren-Beiträge | N16: 0
I17: 0 | J17: 0 | M17: =Jan!M17 -> KFZ-Betriebskosten | N17: 0
I18: 0 | J18: 0 | M18: =Jan!M18 -> Fahrt- und Reisekosten | N18: 0
I19: 0 | J19: 0 | M19: =Jan!M19 -> Betriebl.-Versicherung | N19: 0
I20: 0 | J20: 0 | M20: =Jan!M20 -> Weiterbildung/ Fachliteratur | N20: 0
I21: 0 | J21: 0 | M21: =Jan!M21 -> Geringw. Wirtschaftsgüter | N21: 0
I22: 0 | J22: 0 | M22: =Jan!M22 -> Gewerbl. Sozialversicherung | N22: 0
I23: 0 | J23: 0 | M23: =Jan!M23 -> Div. Steuern u. Abgaben | N23: 0
I24: 0 | J24: 0 | M24: =Jan!M24 -> Sonstige Ausgaben | N24: 0
I25: 0 | J25: 0 | M25: =Jan!M25 -> A-leer1 | N25: 0
I26: 0 | J26: 0 | M26: =Jan!M26 -> A-leer2 | N26: 0
I27: 0 | J27: 0 | M27: =Jan!M27 -> A-leer3 | N27: =SUMIF($K$3:$K$49,M27,$J$3:$J$49) -> 0
I28: 0 | J28: 0 | M28: - - - - - - - - - - - - - - - - - - - | O28: Einnahmen
I29: 0 | J29: 0 | M29: =Jan!M29 -> Handel | O29: =SUMIF($K$3:$K$49,M29,$J$3:$J$49) -> 0
I30: 0 | J30: 0 | M30: =Jan!M30 -> Dienstleistungen | O30: 0
I31: 0 | J31: 0 | M31: =Jan!M31 -> Diverse Gutschriften | O31: 0
I32: 0 | J32: 0 | M32: =Jan!M32 -> E-leer1 | O32: 0
I33: 0 | J33: 0 | M33: =Jan!M33 -> E-leer2 | O33: 0
I34: 0 | J34: 0 | M34: =Jan!M34 -> E-leer3 | O34: 0
I35: 0 | J35: 0 | M35: Summe Einnahmen *) | O35: =SUM(O29:O34) -> 0
A36: =IF(B36<>"",A35+1,"") ->  | I36: 0 | J36: =IF(F36<>"",F36-I36,(G36+I36)*-1) -> 0 | M36: *) gesplittet in Einnahmen mit 0% | O36: =IF(O35<>0,SUM(P3:P500),"") -> 
I37: 0 | J37: 0 | M37: *) gesplittet in Einnahmen mit 5% | O37: =IF(O35<>0,SUM(Q3:Q500),"") -> 
I38: 0 | J38: 0 | M38: *) gesplittet in Einnahmen mit 10% | O38: =IF(O35<>0,SUM(R3:R500),"") -> 
I39: 0 | J39: 0 | M39: *) gesplittet in Einnahmen mit 13% | O39: =IF(O35<>0,SUM(S3:S500),"") -> 
I40: 0 | J40: 0 | M40: *) gesplittet in Einnahmen mit 20% | O40: =IF(O35<>0,SUM(T3:T500),"") -> 
I41: 0 | J41: 0 | M41: Summe Ausgaben | N41: =SUM(N3:N27) -> 0
I42: 0 | J42: 0 | M42: =IF(N42>0,"Überschuss der Einnahmen","Überschuss der Ausgaben") -> Überschuss der Ausgaben | N42: =O35+N41 -> 0
I43: 0 | J43: 0 | M43: Vorsteuer | O43: =SUMIF(I3:I49,"<0",I3:I49)*(-1) -> 0
I44: 0 | J44: 0 | M44: Umsatzsteuer | O44: =SUMIF(I3:I49,">0",I3:I49) -> 0
I45: 0 | J45: 0 | M45: Zahllast Finanzamt | O45: =(O43-O44)*-1 -> 0
I46: 0 | J46: 0
I47: 0 | J47: 0
I48: 0 | J48: 0 | M48: ab Zelle 47 kann man bei Bedarf und pro Klick
A49: =IF(B49<>"",A48+1,"") ->  | I49: =IF(F49<>"",IF(H49=20%,F49/6,IF(H49=13%,F49/8.6923076,IF(H49=5%,F49/21,IF(H49=10%,F49/11,IF(H49=0%,F49*0))))),IF(H49=20%,G49/6*-1,IF(H49=13%,G49/8.6923076*-1,IF(H49=5%,G49/21*-1,IF(H49=10%,G49/11*-1,IF(H49=0%,G49*0)))))) -> 0 | J49: =IF(F49<>"",F49-I49,(G49+I49)*-1) -> 0 | P49: =IF(F49<>"",IF(H49=0%,F49-I49),"") ->  | Q49: =IF(F49<>"",IF(H49=5%,F49-I49),"") ->  | R49: =IF(F49<>"",IF(H49=10%,F49-I49),"") ->  | S49: =IF(F49<>"",IF(H49=13%,F49-I49),"") ->  | T49: =IF(F49<>"",IF(H49=20%,F49-I49),"") -> 
A50: Summe Einnahmen/ Ausgaben: | F50: =SUM(F3:F49) -> 0 | G50: =SUM(G3:G49) -> 0 | I50: =SUM(I3:I49) -> 0 | J50: =SUM(J3:J49) -> 0

Sheet Apr (hidden)
A1: Einnahmen/Ausgaben | E1: =Jan!E1 -> Firma Muster | J1: Apr | K1: =Jan!K1 -> 2022 | M1: Zusammenfassung
A2: lfd. Nr. | B2: Datum | C2: Kto | D2: Rechnung von/an | E2: Text | F2: E-Brutto | G2: A-Brutto | H2: MwSt. | I2: MwSt. Betr. | J2: Netto | K2: Zuordung Ausg/ Einn. | M2: Ausgaben-/ Einnahmenart | N2: Ausgaben | P2: 0% | Q2: 5% | R2: 10% | S2: 13% | T2: 20%
A3: =MAX(Mar!A3:A49)+1 -> 23 | I3: =IF(F3<>"",IF(H3=20%,F3/6,IF(H3=13%,F3/8.6923076,IF(H3=5%,F3/21,IF(H3=10%,F3/11,IF(H3=0%,F3*0))))),IF(H3=20%,G3/6*-1,IF(H3=13%,G3/8.6923076*-1,IF(H3=5%,G3/21*-1,IF(H3=10%,G3/11*-1,IF(H3=0%,G3*0)))))) -> 0 | J3: =IF(F3<>"",F3-I3,(G3+I3)*-1) -> 0 | M3: =Jan!M3 -> Investitionen *) | N3: =SUMIF($K$3:$K$49,M3,$J$3:$J$49) -> 0 | P3: =IF(F3<>"",IF(H3=0%,F3-I3),"") ->  | Q3: =IF(F3<>"",IF(H3=5%,F3-I3),"") ->  | R3: =IF(F3<>"",IF(H3=10%,F3-I3),"") ->  | S3: =IF(F3<>"",IF(H3=13%,F3-I3),"") ->  | T3: =IF(F3<>"",IF(H3=20%,F3-I3),"") -> 
A4: =IF(B4<>"",A3+1,"") ->  | I4: =IF(F4<>"",IF(H4=20%,F4/6,IF(H4=13%,F4/8.6923076,IF(H4=5%,F4/21,IF(H4=10%,F4/11,IF(H4=0%,F4*0))))),IF(H4=20%,G4/6*-1,IF(H4=13%,G4/8.6923076*-1,IF(H4=5%,G4/21*-1,IF(H4=10%,G4/11*-1,IF(H4=0%,G4*0)))))) -> 0 | J4: =IF(F4<>"",F4-I4,(G4+I4)*-1) -> 0 | M4: =Jan!M4 -> Abschreibungen (AfA *) | N4: 0 | P4: =IF(F4<>"",IF(H4=0%,F4-I4),"") ->  | Q4: =IF(F4<>"",IF(H4=5%,F4-I4),"") ->  | R4: =IF(F4<>"",IF(H4=10%,F4-I4),"") ->  | S4: =IF(F4<>"",IF(H4=13%,F4-I4),"") ->  | T4: =IF(F4<>"",IF(H4=20%,F4-I4),"") -> 
A5: =IF(B5<>"",A4+1,"") ->  | I5: 0 | J5: 0 | M5: =Jan!M5 -> Wareneinkäufe | N5: 0
A6: =IF(B6<>"",A5+1,"") ->  | I6: 0 | J6: =IF(F6<>"",F6-I6,(G6+I6)*-1) -> 0 | M6: =Jan!M6 -> Hilfs- u. Betriebsstoffe | N6: 0
I7: 0 | J7: 0 | M7: =Jan!M7 -> Personalkosten | N7: 0
I8: 0 | J8: 0 | M8: =Jan!M8 -> Fremdleistungen (z.B. Prov.) | N8: 0
I9: 0 | J9: 0 | M9: =Jan!M9 -> Miete-Betriebskosten | N9: 0
I10: 0 | J10: 0 | M10: =Jan!M10 -> Büromaterial, Deko, Verp. | N10: 0
I11: 0 | J11: 0 | M11: =Jan!M11 -> Marketing-Werbung | N11: 0
I12: 0 | J12: 0 | M12: =Jan!M12 -> Kommunikation & Porto | N12: 0
I13: 0 | J13: 0 | M13: =Jan!M13 -> Leasing | N13: 0
I14: 0 | J14: 0 | M14: =Jan!M14 -> Bankspesen/Zinsen | N14: 0
I15: 0 | J15: 0 | M15: =Jan!M15 -> Beratungskosten | N15: 0
I16: 0 | J16: 0 | M16: =Jan!M16 -> Gebühren-Beiträge | N16: 0
I17: 0 | J17: 0 | M17: =Jan!M17 -> KFZ-Betriebskosten | N17: 0
I18: 0 | J18: 0 | M18: =Jan!M18 -> Fahrt- und Reisekosten | N18: 0
I19: 0 | J19: 0 | M19: =Jan!M19 -> Betriebl.-Versicherung | N19: 0
I20: 0 | J20: 0 | M20: =Jan!M20 -> Weiterbildung/ Fachliteratur | N20: 0
I21: 0 | J21: 0 | M21: =Jan!M21 -> Geringw. Wirtschaftsgüter | N21: 0
I22: 0 | J22: 0 | M22: =Jan!M22 -> Gewerbl. Sozialversicherung | N22: 0
I23: 0 | J23: 0 | M23: =Jan!M23 -> Div. Steuern u. Abgaben | N23: 0
I24: 0 | J24: 0 | M24: =Jan!M24 -> Sonstige Ausgaben | N24: 0
I25: 0 | J25: 0 | M25: =Jan!M25 -> A-leer1 | N25: 0
I26: 0 | J26: 0 | M26: =Jan!M26 -> A-leer2 | N26: 0
I27: 0 | J27: 0 | M27: =Jan!M27 -> A-leer3 | N27: =SUMIF($K$3:$K$49,M27,$J$3:$J$49) -> 0
I28: 0 | J28: 0 | M28: - - - - - - - - - - - - - - - - - - - | O28: Einnahmen
I29: 0 | J29: 0 | M29: =Jan!M29 -> Handel | O29: =SUMIF($K$3:$K$49,M29,$J$3:$J$49) -> 0
I30: 0 | J30: 0 | M30: =Jan!M30 -> Dienstleistungen | O30: 0
I31: 0 | J31: 0 | M31: =Jan!M31 -> Diverse Gutschriften | O31: 0
I32: 0 | J32: 0 | M32: =Jan!M32 -> E-leer1 | O32: 0
I33: 0 | J33: 0 | M33: =Jan!M33 -> E-leer2 | O33: 0
I34: 0 | J34: 0 | M34: =Jan!M34 -> E-leer3 | O34: 0
I35: 0 | J35: 0 | M35: Summe Einnahmen *) | O35: =SUM(O29:O34) -> 0
A36: =IF(B36<>"",A35+1,"") ->  | I36: 0 | J36: =IF(F36<>"",F36-I36,(G36+I36)*-1) -> 0 | M36: *) gesplittet in Einnahmen mit 0% | O36: =IF(O35<>0,SUM(P3:P500),"") -> 
I37: 0 | J37: 0 | M37: *) gesplittet in Einnahmen mit 5% | O37: =IF(O35<>0,SUM(Q3:Q500),"") -> 
I38: 0 | J38: 0 | M38: *) gesplittet in Einnahmen mit 10% | O38: =IF(O35<>0,SUM(R3:R500),"") -> 
I39: 0 | J39: 0 | M39: *) gesplittet in Einnahmen mit 13% | O39: =IF(O35<>0,SUM(S3:S500),"") -> 
I40: 0 | J40: 0 | M40: *) gesplittet in Einnahmen mit 20% | O40: =IF(O35<>0,SUM(T3:T500),"") -> 
I41: 0 | J41: 0 | M41: Summe Ausgaben | N41: =SUM(N3:N27) -> 0
I42: 0 | J42: 0 | M42: =IF(N42>0,"Überschuss der Einnahmen","Überschuss der Ausgaben") -> Überschuss der Ausgaben | N42: =O35+N41 -> 0
I43: 0 | J43: 0 | M43: Vorsteuer | O43: =SUMIF(I3:I49,"<0",I3:I49)*(-1) -> 0
I44: 0 | J44: 0 | M44: Umsatzsteuer | O44: =SUMIF(I3:I49,">0",I3:I49) -> 0
I45: 0 | J45: 0 | M45: Zahllast Finanzamt | O45: =(O43-O44)*-1 -> 0
I46: 0 | J46: 0
I47: 0 | J47: 0
I48: 0 | J48: 0 | M48: ab Zelle 47 kann man bei Bedarf und pro Klick
A49: =IF(B49<>"",A48+1,"") ->  | I49: =IF(F49<>"",IF(H49=20%,F49/6,IF(H49=13%,F49/8.6923076,IF(H49=5%,F49/21,IF(H49=10%,F49/11,IF(H49=0%,F49*0))))),IF(H49=20%,G49/6*-1,IF(H49=13%,G49/8.6923076*-1,IF(H49=5%,G49/21*-1,IF(H49=10%,G49/11*-1,IF(H49=0%,G49*0)))))) -> 0 | J49: =IF(F49<>"",F49-I49,(G49+I49)*-1) -> 0 | P49: =IF(F49<>"",IF(H49=0%,F49-I49),"") ->  | Q49: =IF(F49<>"",IF(H49=5%,F49-I49),"") ->  | R49: =IF(F49<>"",IF(H49=10%,F49-I49),"") ->  | S49: =IF(F49<>"",IF(H49=13%,F49-I49),"") ->  | T49: =IF(F49<>"",IF(H49=20%,F49-I49),"") -> 
A50: Summe Einnahmen/ Ausgaben: | F50: =SUM(F3:F49) -> 0 | G50: =SUM(G3:G49) -> 0 | I50: =SUM(I3:I49) -> 0 | J50: =SUM(J3:J49) -> 0

Sheet Mai (hidden)
A1: Einnahmen/Ausgaben | E1: =Jan!E1 -> Firma Muster | J1: Mai | K1: =Jan!K1 -> 2022 | M1: Zusammenfassung
A2: lfd. Nr. | B2: Datum | C2: Kto | D2: Rechnung von/an | E2: Text | F2: E-Brutto | G2: A-Brutto | H2: MwSt. | I2: MwSt. Betr. | J2: Netto | K2: Zuordung Ausg/ Einn. | M2: Ausgaben-/ Einnahmenart | N2: Ausgaben | P2: 0% | Q2: 5% | R2: 10% | S2: 13% | T2: 20%
A3: =MAX(Apr!A3:A49)+1 -> 24 | I3: =IF(F3<>"",IF(H3=20%,F3/6,IF(H3=13%,F3/8.6923076,IF(H3=5%,F3/21,IF(H3=10%,F3/11,IF(H3=0%,F3*0))))),IF(H3=20%,G3/6*-1,IF(H3=13%,G3/8.6923076*-1,IF(H3=5%,G3/21*-1,IF(H3=10%,G3/11*-1,IF(H3=0%,G3*0)))))) -> 0 | J3: =IF(F3<>"",F3-I3,(G3+I3)*-1) -> 0 | M3: =Jan!M3 -> Investitionen *) | N3: =SUMIF($K$3:$K$49,M3,$J$3:$J$49) -> 0 | P3: =IF(F3<>"",IF(H3=0%,F3-I3),"") ->  | Q3: =IF(F3<>"",IF(H3=5%,F3-I3),"") ->  | R3: =IF(F3<>"",IF(H3=10%,F3-I3),"") ->  | S3: =IF(F3<>"",IF(H3=13%,F3-I3),"") ->  | T3: =IF(F3<>"",IF(H3=20%,F3-I3),"") -> 
A4: =IF(B4<>"",A3+1,"") ->  | I4: =IF(F4<>"",IF(H4=20%,F4/6,IF(H4=13%,F4/8.6923076,IF(H4=5%,F4/21,IF(H4=10%,F4/11,IF(H4=0%,F4*0))))),IF(H4=20%,G4/6*-1,IF(H4=13%,G4/8.6923076*-1,IF(H4=5%,G4/21*-1,IF(H4=10%,G4/11*-1,IF(H4=0%,G4*0)))))) -> 0 | J4: =IF(F4<>"",F4-I4,(G4+I4)*-1) -> 0 | M4: =Jan!M4 -> Abschreibungen (AfA *) | N4: 0 | P4: =IF(F4<>"",IF(H4=0%,F4-I4),"") ->  | Q4: =IF(F4<>"",IF(H4=5%,F4-I4),"") ->  | R4: =IF(F4<>"",IF(H4=10%,F4-I4),"") ->  | S4: =IF(F4<>"",IF(H4=13%,F4-I4),"") ->  | T4: =IF(F4<>"",IF(H4=20%,F4-I4),"") -> 
A5: =IF(B5<>"",A4+1,"") ->  | I5: 0 | J5: 0 | M5: =Jan!M5 -> Wareneinkäufe | N5: 0
A6: =IF(B6<>"",A5+1,"") ->  | I6: 0 | J6: =IF(F6<>"",F6-I6,(G6+I6)*-1) -> 0 | M6: =Jan!M6 -> Hilfs- u. Betriebsstoffe | N6: 0
I7: 0 | J7: 0 | M7: =Jan!M7 -> Personalkosten | N7: 0
I8: 0 | J8: 0 | M8: =Jan!M8 -> Fremdleistungen (z.B. Prov.) | N8: 0
I9: 0 | J9: 0 | M9: =Jan!M9 -> Miete-Betriebskosten | N9: 0
I10: 0 | J10: 0 | M10: =Jan!M10 -> Büromaterial, Deko, Verp. | N10: 0
I11: 0 | J11: 0 | M11: =Jan!M11 -> Marketing-Werbung | N11: 0
I12: 0 | J12: 0 | M12: =Jan!M12 -> Kommunikation & Porto | N12: 0
I13: 0 | J13: 0 | M13: =Jan!M13 -> Leasing | N13: 0
I14: 0 | J14: 0 | M14: =Jan!M14 -> Bankspesen/Zinsen | N14: 0
I15: 0 | J15: 0 | M15: =Jan!M15 -> Beratungskosten | N15: 0
I16: 0 | J16: 0 | M16: =Jan!M16 -> Gebühren-Beiträge | N16: 0
I17: 0 | J17: 0 | M17: =Jan!M17 -> KFZ-Betriebskosten | N17: 0
I18: 0 | J18: 0 | M18: =Jan!M18 -> Fahrt- und Reisekosten | N18: 0
I19: 0 | J19: 0 | M19: =Jan!M19 -> Betriebl.-Versicherung | N19: 0
I20: 0 | J20: 0 | M20: =Jan!M20 -> Weiterbildung/ Fachliteratur | N20: 0
I21: 0 | J21: 0 | M21: =Jan!M21 -> Geringw. Wirtschaftsgüter | N21: 0
I22: 0 | J22: 0 | M22: =Jan!M22 -> Gewerbl. Sozialversicherung | N22: 0
I23: 0 | J23: 0 | M23: =Jan!M23 -> Div. Steuern u. Abgaben | N23: 0
I24: 0 | J24: 0 | M24: =Jan!M24 -> Sonstige Ausgaben | N24: 0
I25: 0 | J25: 0 | M25: =Jan!M25 -> A-leer1 | N25: 0
I26: 0 | J26: 0 | M26: =Jan!M26 -> A-leer2 | N26: 0
I27: 0 | J27: 0 | M27: =Jan!M27 -> A-leer3 | N27: =SUMIF($K$3:$K$49,M27,$J$3:$J$49) -> 0
I28: 0 | J28: 0 | M28: - - - - - - - - - - - - - - - - - - - | O28: Einnahmen
I29: 0 | J29: 0 | M29: =Jan!M29 -> Handel | O29: =SUMIF($K$3:$K$49,M29,$J$3:$J$49) -> 0
I30: 0 | J30: 0 | M30: =Jan!M30 -> Dienstleistungen | O30: 0
I31: 0 | J31: 0 | M31: =Jan!M31 -> Diverse Gutschriften | O31: 0
I32: 0 | J32: 0 | M32: =Jan!M32 -> E-leer1 | O32: 0
I33: 0 | J33: 0 | M33: =Jan!M33 -> E-leer2 | O33: 0
I34: 0 | J34: 0 | M34: =Jan!M34 -> E-leer3 | O34: 0
I35: 0 | J35: 0 | M35: Summe Einnahmen *) | O35: =SUM(O29:O34) -> 0
A36: =IF(B36<>"",A35+1,"") ->  | I36: 0 | J36: =IF(F36<>"",F36-I36,(G36+I36)*-1) -> 0 | M36: *) gesplittet in Einnahmen mit 0% | O36: =IF(O35<>0,SUM(P3:P500),"") -> 
I37: 0 | J37: 0 | M37: *) gesplittet in Einnahmen mit 5% | O37: =IF(O35<>0,SUM(Q3:Q500),"") -> 
I38: 0 | J38: 0 | M38: *) gesplittet in Einnahmen mit 10% | O38: =IF(O35<>0,SUM(R3:R500),"") -> 
I39: 0 | J39: 0 | M39: *) gesplittet in Einnahmen mit 13% | O39: =IF(O35<>0,SUM(S3:S500),"") -> 
I40: 0 | J40: 0 | M40: *) gesplittet in Einnahmen mit 20% | O40: =IF(O35<>0,SUM(T3:T500),"") -> 
I41: 0 | J41: 0 | M41: Summe Ausgaben | N41: =SUM(N3:N27) -> 0
I42: 0 | J42: 0 | M42: =IF(N42>0,"Überschuss der Einnahmen","Überschuss der Ausgaben") -> Überschuss der Ausgaben | N42: =O35+N41 -> 0
I43: 0 | J43: 0 | M43: Vorsteuer | O43: =SUMIF(I3:I49,"<0",I3:I49)*(-1) -> 0
I44: 0 | J44: 0 | M44: Umsatzsteuer | O44: =SUMIF(I3:I49,">0",I3:I49) -> 0
I45: 0 | J45: 0 | M45: Zahllast Finanzamt | O45: =(O43-O44)*-1 -> 0
I46: 0 | J46: 0
I47: 0 | J47: 0
I48: 0 | J48: 0 | M48: ab Zelle 47 kann man bei Bedarf und pro Klick
A49: =IF(B49<>"",A48+1,"") ->  | I49: =IF(F49<>"",IF(H49=20%,F49/6,IF(H49=13%,F49/8.6923076,IF(H49=5%,F49/21,IF(H49=10%,F49/11,IF(H49=0%,F49*0))))),IF(H49=20%,G49/6*-1,IF(H49=13%,G49/8.6923076*-1,IF(H49=5%,G49/21*-1,IF(H49=10%,G49/11*-1,IF(H49=0%,G49*0)))))) -> 0 | J49: =IF(F49<>"",F49-I49,(G49+I49)*-1) -> 0 | P49: =IF(F49<>"",IF(H49=0%,F49-I49),"") ->  | Q49: =IF(F49<>"",IF(H49=5%,F49-I49),"") ->  | R49: =IF(F49<>"",IF(H49=10%,F49-I49),"") ->  | S49: =IF(F49<>"",IF(H49=13%,F49-I49),"") ->  | T49: =IF(F49<>"",IF(H49=20%,F49-I49),"") -> 
A50: Summe Einnahmen/ Ausgaben: | F50: =SUM(F3:F49) -> 0 | G50: =SUM(G3:G49) -> 0 | I50: =SUM(I3:I49) -> 0 | J50: =SUM(J3:J49) -> 0

Sheet Jun (hidden)
A1: Einnahmen/Ausgaben | E1: =Jan!E1 -> Firma Muster | J1: Jun | K1: =Jan!K1 -> 2022 | M1: Zusammenfassung
A2: lfd. Nr. | B2: Datum | C2: Kto | D2: Rechnung von/an | E2: Text | F2: E-Brutto | G2: A-Brutto | H2: MwSt. | I2: MwSt. Betr. | J2: Netto | K2: Zuordung Ausg/ Einn. | M2: Ausgaben-/ Einnahmenart | N2: Ausgaben | P2: 0% | Q2: 5% | R2: 10% | S2: 13% | T2: 20%
A3: =MAX(Mai!A3:A49)+1 -> 25 | I3: =IF(F3<>"",IF(H3=20%,F3/6,IF(H3=13%,F3/8.6923076,IF(H3=5%,F3/21,IF(H3=10%,F3/11,IF(H3=0%,F3*0))))),IF(H3=20%,G3/6*-1,IF(H3=13%,G3/8.6923076*-1,IF(H3=5%,G3/21*-1,IF(H3=10%,G3/11*-1,IF(H3=0%,G3*0)))))) -> 0 | J3: =IF(F3<>"",F3-I3,(G3+I3)*-1) -> 0 | M3: =Jan!M3 -> Investitionen *) | N3: =SUMIF($K$3:$K$49,M3,$J$3:$J$49) -> 0 | P3: =IF(F3<>"",IF(H3=0%,F3-I3),"") ->  | Q3: =IF(F3<>"",IF(H3=5%,F3-I3),"") ->  | R3: =IF(F3<>"",IF(H3=10%,F3-I3),"") ->  | S3: =IF(F3<>"",IF(H3=13%,F3-I3),"") ->  | T3: =IF(F3<>"",IF(H3=20%,F3-I3),"") -> 
A4: =IF(B4<>"",A3+1,"") ->  | I4: =IF(F4<>"",IF(H4=20%,F4/6,IF(H4=13%,F4/8.6923076,IF(H4=5%,F4/21,IF(H4=10%,F4/11,IF(H4=0%,F4*0))))),IF(H4=20%,G4/6*-1,IF(H4=13%,G4/8.6923076*-1,IF(H4=5%,G4/21*-1,IF(H4=10%,G4/11*-1,IF(H4=0%,G4*0)))))) -> 0 | J4: =IF(F4<>"",F4-I4,(G4+I4)*-1) -> 0 | M4: =Jan!M4 -> Abschreibungen (AfA *) | N4: 0 | P4: =IF(F4<>"",IF(H4=0%,F4-I4),"") ->  | Q4: =IF(F4<>"",IF(H4=5%,F4-I4),"") ->  | R4: =IF(F4<>"",IF(H4=10%,F4-I4),"") ->  | S4: =IF(F4<>"",IF(H4=13%,F4-I4),"") ->  | T4: =IF(F4<>"",IF(H4=20%,F4-I4),"") -> 
A5: =IF(B5<>"",A4+1,"") ->  | I5: 0 | J5: 0 | M5: =Jan!M5 -> Wareneinkäufe | N5: 0
A6: =IF(B6<>"",A5+1,"") ->  | I6: 0 | J6: =IF(F6<>"",F6-I6,(G6+I6)*-1) -> 0 | M6: =Jan!M6 -> Hilfs- u. Betriebsstoffe | N6: 0
I7: 0 | J7: 0 | M7: =Jan!M7 -> Personalkosten | N7: 0
I8: 0 | J8: 0 | M8: =Jan!M8 -> Fremdleistungen (z.B. Prov.) | N8: 0
I9: 0 | J9: 0 | M9: =Jan!M9 -> Miete-Betriebskosten | N9: 0
I10: 0 | J10: 0 | M10: =Jan!M10 -> Büromaterial, Deko, Verp. | N10: 0
I11: 0 | J11: 0 | M11: =Jan!M11 -> Marketing-Werbung | N11: 0
I12: 0 | J12: 0 | M12: =Jan!M12 -> Kommunikation & Porto | N12: 0
I13: 0 | J13: 0 | M13: =Jan!M13 -> Leasing | N13: 0
I14: 0 | J14: 0 | M14: =Jan!M14 -> Bankspesen/Zinsen | N14: 0
I15: 0 | J15: 0 | M15: =Jan!M15 -> Beratungskosten | N15: 0
I16: 0 | J16: 0 | M16: =Jan!M16 -> Gebühren-Beiträge | N16: 0
I17: 0 | J17: 0 | M17: =Jan!M17 -> KFZ-Betriebskosten | N17: 0
I18: 0 | J18: 0 | M18: =Jan!M18 -> Fahrt- und Reisekosten | N18: 0
I19: 0 | J19: 0 | M19: =Jan!M19 -> Betriebl.-Versicherung | N19: 0
I20: 0 | J20: 0 | M20: =Jan!M20 -> Weiterbildung/ Fachliteratur | N20: 0
I21: 0 | J21: 0 | M21: =Jan!M21 -> Geringw. Wirtschaftsgüter | N21: 0
I22: 0 | J22: 0 | M22: =Jan!M22 -> Gewerbl. Sozialversicherung | N22: 0
I23: 0 | J23: 0 | M23: =Jan!M23 -> Div. Steuern u. Abgaben | N23: 0
I24: 0 | J24: 0 | M24: =Jan!M24 -> Sonstige Ausgaben | N24: 0
I25: 0 | J25: 0 | M25: =Jan!M25 -> A-leer1 | N25: 0
I26: 0 | J26: 0 | M26: =Jan!M26 -> A-leer2 | N26: 0
I27: 0 | J27: 0 | M27: =Jan!M27 -> A-leer3 | N27: =SUMIF($K$3:$K$49,M27,$J$3:$J$49) -> 0
I28: 0 | J28: 0 | M28: - - - - - - - - - - - - - - - - - - - | O28: Einnahmen
I29: 0 | J29: 0 | M29: =Jan!M29 -> Handel | O29: =SUMIF($K$3:$K$49,M29,$J$3:$J$49) -> 0
I30: 0 | J30: 0 | M30: =Jan!M30 -> Dienstleistungen | O30: 0
I31: 0 | J31: 0 | M31: =Jan!M31 -> Diverse Gutschriften | O31: 0
I32: 0 | J32: 0 | M32: =Jan!M32 -> E-leer1 | O32: 0
I33: 0 | J33: 0 | M33: =Jan!M33 -> E-leer2 | O33: 0
I34: 0 | J34: 0 | M34: =Jan!M34 -> E-leer3 | O34: 0
I35: 0 | J35: 0 | M35: Summe Einnahmen *) | O35: =SUM(O29:O34) -> 0
A36: =IF(B36<>"",A35+1,"") ->  | I36: 0 | J36: =IF(F36<>"",F36-I36,(G36+I36)*-1) -> 0 | M36: *) gesplittet in Einnahmen mit 0% | O36: =IF(O35<>0,SUM(P3:P500),"") -> 
I37: 0 | J37: 0 | M37: *) gesplittet in Einnahmen mit 5% | O37: =IF(O35<>0,SUM(Q3:Q500),"") -> 
I38: 0 | J38: 0 | M38: *) gesplittet in Einnahmen mit 10% | O38: =IF(O35<>0,SUM(R3:R500),"") -> 
I39: 0 | J39: 0 | M39: *) gesplittet in Einnahmen mit 13% | O39: =IF(O35<>0,SUM(S3:S500),"") -> 
I40: 0 | J40: 0 | M40: *) gesplittet in Einnahmen mit 20% | O40: =IF(O35<>0,SUM(T3:T500),"") -> 
I41: 0 | J41: 0 | M41: Summe Ausgaben | N41: =SUM(N3:N27) -> 0
I42: 0 | J42: 0 | M42: =IF(N42>0,"Überschuss der Einnahmen","Überschuss der Ausgaben") -> Überschuss der Ausgaben | N42: =O35+N41 -> 0
I43: 0 | J43: 0 | M43: Vorsteuer | O43: =SUMIF(I3:I49,"<0",I3:I49)*(-1) -> 0
I44: 0 | J44: 0 | M44: Umsatzsteuer | O44: =SUMIF(I3:I49,">0",I3:I49) -> 0
I45: 0 | J45: 0 | M45: Zahllast Finanzamt | O45: =(O43-O44)*-1 -> 0
I46: 0 | J46: 0
I47: 0 | J47: 0
I48: 0 | J48: 0 | M48: ab Zelle 47 kann man bei Bedarf und pro Klick
A49: =IF(B49<>"",A48+1,"") ->  | I49: =IF(F49<>"",IF(H49=20%,F49/6,IF(H49=13%,F49/8.6923076,IF(H49=5%,F49/21,IF(H49=10%,F49/11,IF(H49=0%,F49*0))))),IF(H49=20%,G49/6*-1,IF(H49=13%,G49/8.6923076*-1,IF(H49=5%,G49/21*-1,IF(H49=10%,G49/11*-1,IF(H49=0%,G49*0)))))) -> 0 | J49: =IF(F49<>"",F49-I49,(G49+I49)*-1) -> 0 | P49: =IF(F49<>"",IF(H49=0%,F49-I49),"") ->  | Q49: =IF(F49<>"",IF(H49=5%,F49-I49),"") ->  | R49: =IF(F49<>"",IF(H49=10%,F49-I49),"") ->  | S49: =IF(F49<>"",IF(H49=13%,F49-I49),"") ->  | T49: =IF(F49<>"",IF(H49=20%,F49-I49),"") -> 
A50: Summe Einnahmen/ Ausgaben: | F50: =SUM(F3:F49) -> 0 | G50: =SUM(G3:G49) -> 0 | I50: =SUM(I3:I49) -> 0 | J50: =SUM(J3:J49) -> 0

Sheet Jul (hidden)
A1: Einnahmen/Ausgaben | E1: =Jan!E1 -> Firma Muster | J1: Jul | K1: =Jan!K1 -> 2022 | M1: Zusammenfassung
A2: lfd. Nr. | B2: Datum | C2: Kto | D2: Rechnung von/an | E2: Text | F2: E-Brutto | G2: A-Brutto | H2: MwSt. | I2: MwSt. Betr. | J2: Netto | K2: Zuordung Ausg/ Einn. | M2: Ausgaben-/ Einnahmenart | N2: Ausgaben | P2: 0% | Q2: 5% | R2: 10% | S2: 13% | T2: 20%
A3: =MAX(Jun!A3:A49)+1 -> 26 | I3: =IF(F3<>"",IF(H3=20%,F3/6,IF(H3=13%,F3/8.6923076,IF(H3=5%,F3/21,IF(H3=10%,F3/11,IF(H3=0%,F3*0))))),IF(H3=20%,G3/6*-1,IF(H3=13%,G3/8.6923076*-1,IF(H3=5%,G3/21*-1,IF(H3=10%,G3/11*-1,IF(H3=0%,G3*0)))))) -> 0 | J3: =IF(F3<>"",F3-I3,(G3+I3)*-1) -> 0 | M3: =Jan!M3 -> Investitionen *) | N3: =SUMIF($K$3:$K$49,M3,$J$3:$J$49) -> 0 | P3: =IF(F3<>"",IF(H3=0%,F3-I3),"") ->  | Q3: =IF(F3<>"",IF(H3=5%,F3-I3),"") ->  | R3: =IF(F3<>"",IF(H3=10%,F3-I3),"") ->  | S3: =IF(F3<>"",IF(H3=13%,F3-I3),"") ->  | T3: =IF(F3<>"",IF(H3=20%,F3-I3),"") -> 
A4: =IF(B4<>"",A3+1,"") ->  | I4: =IF(F4<>"",IF(H4=20%,F4/6,IF(H4=13%,F4/8.6923076,IF(H4=5%,F4/21,IF(H4=10%,F4/11,IF(H4=0%,F4*0))))),IF(H4=20%,G4/6*-1,IF(H4=13%,G4/8.6923076*-1,IF(H4=5%,G4/21*-1,IF(H4=10%,G4/11*-1,IF(H4=0%,G4*0)))))) -> 0 | J4: =IF(F4<>"",F4-I4,(G4+I4)*-1) -> 0 | M4: =Jan!M4 -> Abschreibungen (AfA *) | N4: 0 | P4: =IF(F4<>"",IF(H4=0%,F4-I4),"") ->  | Q4: =IF(F4<>"",IF(H4=5%,F4-I4),"") ->  | R4: =IF(F4<>"",IF(H4=10%,F4-I4),"") ->  | S4: =IF(F4<>"",IF(H4=13%,F4-I4),"") ->  | T4: =IF(F4<>"",IF(H4=20%,F4-I4),"") -> 
A5: =IF(B5<>"",A4+1,"") ->  | I5: 0 | J5: 0 | M5: =Jan!M5 -> Wareneinkäufe | N5: 0
A6: =IF(B6<>"",A5+1,"") ->  | I6: 0 | J6: =IF(F6<>"",F6-I6,(G6+I6)*-1) -> 0 | M6: =Jan!M6 -> Hilfs- u. Betriebsstoffe | N6: 0
I7: 0 | J7: 0 | M7: =Jan!M7 -> Personalkosten | N7: 0
I8: 0 | J8: 0 | M8: =Jan!M8 -> Fremdleistungen (z.B. Prov.) | N8: 0
I9: 0 | J9: 0 | M9: =Jan!M9 -> Miete-Betriebskosten | N9: 0
I10: 0 | J10: 0 | M10: =Jan!M10 -> Büromaterial, Deko, Verp. | N10: 0
I11: 0 | J11: 0 | M11: =Jan!M11 -> Marketing-Werbung | N11: 0
I12: 0 | J12: 0 | M12: =Jan!M12 -> Kommunikation & Porto | N12: 0
I13: 0 | J13: 0 | M13: =Jan!M13 -> Leasing | N13: 0
I14: 0 | J14: 0 | M14: =Jan!M14 -> Bankspesen/Zinsen | N14: 0
I15: 0 | J15: 0 | M15: =Jan!M15 -> Beratungskosten | N15: 0
I16: 0 | J16: 0 | M16: =Jan!M16 -> Gebühren-Beiträge | N16: 0
I17: 0 | J17: 0 | M17: =Jan!M17 -> KFZ-Betriebskosten | N17: 0
I18: 0 | J18: 0 | M18: =Jan!M18 -> Fahrt- und Reisekosten | N18: 0
I19: 0 | J19: 0 | M19: =Jan!M19 -> Betriebl.-Versicherung | N19: 0
I20: 0 | J20: 0 | M20: =Jan!M20 -> Weiterbildung/ Fachliteratur | N20: 0
I21: 0 | J21: 0 | M21: =Jan!M21 -> Geringw. Wirtschaftsgüter | N21: 0
I22: 0 | J22: 0 | M22: =Jan!M22 -> Gewerbl. Sozialversicherung | N22: 0
I23: 0 | J23: 0 | M23: =Jan!M23 -> Div. Steuern u. Abgaben | N23: 0
I24: 0 | J24: 0 | M24: =Jan!M24 -> Sonstige Ausgaben | N24: 0
I25: 0 | J25: 0 | M25: =Jan!M25 -> A-leer1 | N25: 0
I26: 0 | J26: 0 | M26: =Jan!M26 -> A-leer2 | N26: 0
I27: 0 | J27: 0 | M27: =Jan!M27 -> A-leer3 | N27: =SUMIF($K$3:$K$49,M27,$J$3:$J$49) -> 0
I28: 0 | J28: 0 | M28: - - - - - - - - - - - - - - - - - - - | O28: Einnahmen
I29: 0 | J29: 0 | M29: =Jan!M29 -> Handel | O29: =SUMIF($K$3:$K$49,M29,$J$3:$J$49) -> 0
I30: 0 | J30: 0 | M30: =Jan!M30 -> Dienstleistungen | O30: 0
I31: 0 | J31: 0 | M31: =Jan!M31 -> Diverse Gutschriften | O31: 0
I32: 0 | J32: 0 | M32: =Jan!M32 -> E-leer1 | O32: 0
I33: 0 | J33: 0 | M33: =Jan!M33 -> E-leer2 | O33: 0
I34: 0 | J34: 0 | M34: =Jan!M34 -> E-leer3 | O34: 0
I35: 0 | J35: 0 | M35: Summe Einnahmen *) | O35: =SUM(O29:O34) -> 0
A36: =IF(B36<>"",A35+1,"") ->  | I36: 0 | J36: =IF(F36<>"",F36-I36,(G36+I36)*-1) -> 0 | M36: *) gesplittet in Einnahmen mit 0% | O36: =IF(O35<>0,SUM(P3:P500),"") -> 
I37: 0 | J37: 0 | M37: *) gesplittet in Einnahmen mit 5% | O37: =IF(O35<>0,SUM(Q3:Q500),"") -> 
I38: 0 | J38: 0 | M38: *) gesplittet in Einnahmen mit 10% | O38: =IF(O35<>0,SUM(R3:R500),"") -> 
I39: 0 | J39: 0 | M39: *) gesplittet in Einnahmen mit 13% | O39: =IF(O35<>0,SUM(S3:S500),"") -> 
I40: 0 | J40: 0 | M40: *) gesplittet in Einnahmen mit 20% | O40: =IF(O35<>0,SUM(T3:T500),"") -> 
I41: 0 | J41: 0 | M41: Summe Ausgaben | N41: =SUM(N3:N27) -> 0
I42: 0 | J42: 0 | M42: =IF(N42>0,"Überschuss der Einnahmen","Überschuss der Ausgaben") -> Überschuss der Ausgaben | N42: =O35+N41 -> 0
I43: 0 | J43: 0 | M43: Vorsteuer | O43: =SUMIF(I3:I49,"<0",I3:I49)*(-1) -> 0
I44: 0 | J44: 0 | M44: Umsatzsteuer | O44: =SUMIF(I3:I49,">0",I3:I49) -> 0
I45: 0 | J45: 0 | M45: Zahllast Finanzamt | O45: =(O43-O44)*-1 -> 0
I46: 0 | J46: 0
I47: 0 | J47: 0
I48: 0 | J48: 0 | M48: ab Zelle 47 kann man bei Bedarf und pro Klick
A49: =IF(B49<>"",A48+1,"") ->  | I49: =IF(F49<>"",IF(H49=20%,F49/6,IF(H49=13%,F49/8.6923076,IF(H49=5%,F49/21,IF(H49=10%,F49/11,IF(H49=0%,F49*0))))),IF(H49=20%,G49/6*-1,IF(H49=13%,G49/8.6923076*-1,IF(H49=5%,G49/21*-1,IF(H49=10%,G49/11*-1,IF(H49=0%,G49*0)))))) -> 0 | J49: =IF(F49<>"",F49-I49,(G49+I49)*-1) -> 0 | P49: =IF(F49<>"",IF(H49=0%,F49-I49),"") ->  | Q49: =IF(F49<>"",IF(H49=5%,F49-I49),"") ->  | R49: =IF(F49<>"",IF(H49=10%,F49-I49),"") ->  | S49: =IF(F49<>"",IF(H49=13%,F49-I49),"") ->  | T49: =IF(F49<>"",IF(H49=20%,F49-I49),"") -> 
A50: Summe Einnahmen/ Ausgaben: | F50: =SUM(F3:F49) -> 0 | G50: =SUM(G3:G49) -> 0 | I50: =SUM(I3:I49) -> 0 | J50: =SUM(J3:J49) -> 0

Sheet Aug (hidden)
A1: Einnahmen/Ausgaben | E1: =Jan!E1 -> Firma Muster | J1: Aug | K1: =Jan!K1 -> 2022 | M1: Zusammenfassung
A2: lfd. Nr. | B2: Datum | C2: Kto | D2: Rechnung von/an | E2: Text | F2: E-Brutto | G2: A-Brutto | H2: MwSt. | I2: MwSt. Betr. | J2: Netto | K2: Zuordung Ausg/ Einn. | M2: Ausgaben-/ Einnahmenart | N2: Ausgaben | P2: 0% | Q2: 5% | R2: 10% | S2: 13% | T2: 20%
A3: =MAX(Jul!A3:A49)+1 -> 27 | I3: =IF(F3<>"",IF(H3=20%,F3/6,IF(H3=13%,F3/8.6923076,IF(H3=5%,F3/21,IF(H3=10%,F3/11,IF(H3=0%,F3*0))))),IF(H3=20%,G3/6*-1,IF(H3=13%,G3/8.6923076*-1,IF(H3=5%,G3/21*-1,IF(H3=10%,G3/11*-1,IF(H3=0%,G3*0)))))) -> 0 | J3: =IF(F3<>"",F3-I3,(G3+I3)*-1) -> 0 | M3: =Jan!M3 -> Investitionen *) | N3: =SUMIF($K$3:$K$49,M3,$J$3:$J$49) -> 0 | P3: =IF(F3<>"",IF(H3=0%,F3-I3),"") ->  | Q3: =IF(F3<>"",IF(H3=5%,F3-I3),"") ->  | R3: =IF(F3<>"",IF(H3=10%,F3-I3),"") ->  | S3: =IF(F3<>"",IF(H3=13%,F3-I3),"") ->  | T3: =IF(F3<>"",IF(H3=20%,F3-I3),"") -> 
A4: =IF(B4<>"",A3+1,"") ->  | I4: =IF(F4<>"",IF(H4=20%,F4/6,IF(H4=13%,F4/8.6923076,IF(H4=5%,F4/21,IF(H4=10%,F4/11,IF(H4=0%,F4*0))))),IF(H4=20%,G4/6*-1,IF(H4=13%,G4/8.6923076*-1,IF(H4=5%,G4/21*-1,IF(H4=10%,G4/11*-1,IF(H4=0%,G4*0)))))) -> 0 | J4: =IF(F4<>"",F4-I4,(G4+I4)*-1) -> 0 | M4: =Jan!M4 -> Abschreibungen (AfA *) | N4: 0 | P4: =IF(F4<>"",IF(H4=0%,F4-I4),"") ->  | Q4: =IF(F4<>"",IF(H4=5%,F4-I4),"") ->  | R4: =IF(F4<>"",IF(H4=10%,F4-I4),"") ->  | S4: =IF(F4<>"",IF(H4=13%,F4-I4),"") ->  | T4: =IF(F4<>"",IF(H4=20%,F4-I4),"") -> 
A5: =IF(B5<>"",A4+1,"") ->  | I5: 0 | J5: 0 | M5: =Jan!M5 -> Wareneinkäufe | N5: 0
A6: =IF(B6<>"",A5+1,"") ->  | I6: 0 | J6: =IF(F6<>"",F6-I6,(G6+I6)*-1) -> 0 | M6: =Jan!M6 -> Hilfs- u. Betriebsstoffe | N6: 0
I7: 0 | J7: 0 | M7: =Jan!M7 -> Personalkosten | N7: 0
I8: 0 | J8: 0 | M8: =Jan!M8 -> Fremdleistungen (z.B. Prov.) | N8: 0
I9: 0 | J9: 0 | M9: =Jan!M9 -> Miete-Betriebskosten | N9: 0
I10: 0 | J10: 0 | M10: =Jan!M10 -> Büromaterial, Deko, Verp. | N10: 0
I11: 0 | J11: 0 | M11: =Jan!M11 -> Marketing-Werbung | N11: 0
I12: 0 | J12: 0 | M12: =Jan!M12 -> Kommunikation & Porto | N12: 0
I13: 0 | J13: 0 | M13: =Jan!M13 -> Leasing | N13: 0
I14: 0 | J14: 0 | M14: =Jan!M14 -> Bankspesen/Zinsen | N14: 0
I15: 0 | J15: 0 | M15: =Jan!M15 -> Beratungskosten | N15: 0
I16: 0 | J16: 0 | M16: =Jan!M16 -> Gebühren-Beiträge | N16: 0
I17: 0 | J17: 0 | M17: =Jan!M17 -> KFZ-Betriebskosten | N17: 0
I18: 0 | J18: 0 | M18: =Jan!M18 -> Fahrt- und Reisekosten | N18: 0
I19: 0 | J19: 0 | M19: =Jan!M19 -> Betriebl.-Versicherung | N19: 0
I20: 0 | J20: 0 | M20: =Jan!M20 -> Weiterbildung/ Fachliteratur | N20: 0
I21: 0 | J21: 0 | M21: =Jan!M21 -> Geringw. Wirtschaftsgüter | N21: 0
I22: 0 | J22: 0 | M22: =Jan!M22 -> Gewerbl. Sozialversicherung | N22: 0
I23: 0 | J23: 0 | M23: =Jan!M23 -> Div. Steuern u. Abgaben | N23: 0
I24: 0 | J24: 0 | M24: =Jan!M24 -> Sonstige Ausgaben | N24: 0
I25: 0 | J25: 0 | M25: =Jan!M25 -> A-leer1 | N25: 0
I26: 0 | J26: 0 | M26: =Jan!M26 -> A-leer2 | N26: 0
I27: 0 | J27: 0 | M27: =Jan!M27 -> A-leer3 | N27: =SUMIF($K$3:$K$49,M27,$J$3:$J$49) -> 0
I28: 0 | J28: 0 | M28: - - - - - - - - - - - - - - - - - - - | O28: Einnahmen
I29: 0 | J29: 0 | M29: =Jan!M29 -> Handel | O29: =SUMIF($K$3:$K$49,M29,$J$3:$J$49) -> 0
I30: 0 | J30: 0 | M30: =Jan!M30 -> Dienstleistungen | O30: 0
I31: 0 | J31: 0 | M31: =Jan!M31 -> Diverse Gutschriften | O31: 0
I32: 0 | J32: 0 | M32: =Jan!M32 -> E-leer1 | O32: 0
I33: 0 | J33: 0 | M33: =Jan!M33 -> E-leer2 | O33: 0
I34: 0 | J34: 0 | M34: =Jan!M34 -> E-leer3 | O34: 0
I35: 0 | J35: 0 | M35: Summe Einnahmen *) | O35: =SUM(O29:O34) -> 0
A36: =IF(B36<>"",A35+1,"") ->  | I36: 0 | J36: =IF(F36<>"",F36-I36,(G36+I36)*-1) -> 0 | M36: *) gesplittet in Einnahmen mit 0% | O36: =IF(O35<>0,SUM(P3:P500),"") -> 
I37: 0 | J37: 0 | M37: *) gesplittet in Einnahmen mit 5% | O37: =IF(O35<>0,SUM(Q3:Q500),"") -> 
I38: 0 | J38: 0 | M38: *) gesplittet in Einnahmen mit 10% | O38: =IF(O35<>0,SUM(R3:R500),"") -> 
I39: 0 | J39: 0 | M39: *) gesplittet in Einnahmen mit 13% | O39: =IF(O35<>0,SUM(S3:S500),"") -> 
I40: 0 | J40: 0 | M40: *) gesplittet in Einnahmen mit 20% | O40: =IF(O35<>0,SUM(T3:T500),"") -> 
I41: 0 | J41: 0 | M41: Summe Ausgaben | N41: =SUM(N3:N27) -> 0
I42: 0 | J42: 0 | M42: =IF(N42>0,"Überschuss der Einnahmen","Überschuss der Ausgaben") -> Überschuss der Ausgaben | N42: =O35+N41 -> 0
I43: 0 | J43: 0 | M43: Vorsteuer | O43: =SUMIF(I3:I49,"<0",I3:I49)*(-1) -> 0
I44: 0 | J44: 0 | M44: Umsatzsteuer | O44: =SUMIF(I3:I49,">0",I3:I49) -> 0
I45: 0 | J45: 0 | M45: Zahllast Finanzamt | O45: =(O43-O44)*-1 -> 0
I46: 0 | J46: 0
I47: 0 | J47: 0
I48: 0 | J48: 0 | M48: ab Zelle 47 kann man bei Bedarf und pro Klick
A49: =IF(B49<>"",A48+1,"") ->  | I49: =IF(F49<>"",IF(H49=20%,F49/6,IF(H49=13%,F49/8.6923076,IF(H49=5%,F49/21,IF(H49=10%,F49/11,IF(H49=0%,F49*0))))),IF(H49=20%,G49/6*-1,IF(H49=13%,G49/8.6923076*-1,IF(H49=5%,G49/21*-1,IF(H49=10%,G49/11*-1,IF(H49=0%,G49*0)))))) -> 0 | J49: =IF(F49<>"",F49-I49,(G49+I49)*-1) -> 0 | P49: =IF(F49<>"",IF(H49=0%,F49-I49),"") ->  | Q49: =IF(F49<>"",IF(H49=5%,F49-I49),"") ->  | R49: =IF(F49<>"",IF(H49=10%,F49-I49),"") ->  | S49: =IF(F49<>"",IF(H49=13%,F49-I49),"") ->  | T49: =IF(F49<>"",IF(H49=20%,F49-I49),"") -> 
A50: Summe Einnahmen/ Ausgaben: | F50: =SUM(F3:F49) -> 0 | G50: =SUM(G3:G49) -> 0 | I50: =SUM(I3:I49) -> 0 | J50: =SUM(J3:J49) -> 0

Sheet Sep (hidden)
A1: Einnahmen/Ausgaben | E1: =Jan!E1 -> Firma Muster | J1: Sep | K1: =Jan!K1 -> 2022 | M1: Zusammenfassung
A2: lfd. Nr. | B2: Datum | C2: Kto | D2: Rechnung von/an | E2: Text | F2: E-Brutto | G2: A-Brutto | H2: MwSt. | I2: MwSt. Betr. | J2: Netto | K2: Zuordung Ausg/ Einn. | M2: Ausgaben-/ Einnahmenart | N2: Ausgaben | P2: 0% | Q2: 5% | R2: 10% | S2: 13% | T2: 20%
A3: =MAX(Aug!A3:A49)+1 -> 28 | I3: =IF(F3<>"",IF(H3=20%,F3/6,IF(H3=13%,F3/8.6923076,IF(H3=5%,F3/21,IF(H3=10%,F3/11,IF(H3=0%,F3*0))))),IF(H3=20%,G3/6*-1,IF(H3=13%,G3/8.6923076*-1,IF(H3=5%,G3/21*-1,IF(H3=10%,G3/11*-1,IF(H3=0%,G3*0)))))) -> 0 | J3: =IF(F3<>"",F3-I3,(G3+I3)*-1) -> 0 | M3: =Jan!M3 -> Investitionen *) | N3: =SUMIF($K$3:$K$49,M3,$J$3:$J$49) -> 0 | P3: =IF(F3<>"",IF(H3=0%,F3-I3),"") ->  | Q3: =IF(F3<>"",IF(H3=5%,F3-I3),"") ->  | R3: =IF(F3<>"",IF(H3=10%,F3-I3),"") ->  | S3: =IF(F3<>"",IF(H3=13%,F3-I3),"") ->  | T3: =IF(F3<>"",IF(H3=20%,F3-I3),"") -> 
A4: =IF(B4<>"",A3+1,"") ->  | I4: =IF(F4<>"",IF(H4=20%,F4/6,IF(H4=13%,F4/8.6923076,IF(H4=5%,F4/21,IF(H4=10%,F4/11,IF(H4=0%,F4*0))))),IF(H4=20%,G4/6*-1,IF(H4=13%,G4/8.6923076*-1,IF(H4=5%,G4/21*-1,IF(H4=10%,G4/11*-1,IF(H4=0%,G4*0)))))) -> 0 | J4: =IF(F4<>"",F4-I4,(G4+I4)*-1) -> 0 | M4: =Jan!M4 -> Abschreibungen (AfA *) | N4: 0 | P4: =IF(F4<>"",IF(H4=0%,F4-I4),"") ->  | Q4: =IF(F4<>"",IF(H4=5%,F4-I4),"") ->  | R4: =IF(F4<>"",IF(H4=10%,F4-I4),"") ->  | S4: =IF(F4<>"",IF(H4=13%,F4-I4),"") ->  | T4: =IF(F4<>"",IF(H4=20%,F4-I4),"") -> 
A5: =IF(B5<>"",A4+1,"") ->  | I5: 0 | J5: 0 | M5: =Jan!M5 -> Wareneinkäufe | N5: 0
A6: =IF(B6<>"",A5+1,"") ->  | I6: 0 | J6: =IF(F6<>"",F6-I6,(G6+I6)*-1) -> 0 | M6: =Jan!M6 -> Hilfs- u. Betriebsstoffe | N6: 0
I7: 0 | J7: 0 | M7: =Jan!M7 -> Personalkosten | N7: 0
I8: 0 | J8: 0 | M8: =Jan!M8 -> Fremdleistungen (z.B. Prov.) | N8: 0
I9: 0 | J9: 0 | M9: =Jan!M9 -> Miete-Betriebskosten | N9: 0
I10: 0 | J10: 0 | M10: =Jan!M10 -> Büromaterial, Deko, Verp. | N10: 0
I11: 0 | J11: 0 | M11: =Jan!M11 -> Marketing-Werbung | N11: 0
I12: 0 | J12: 0 | M12: =Jan!M12 -> Kommunikation & Porto | N12: 0
I13: 0 | J13: 0 | M13: =Jan!M13 -> Leasing | N13: 0
I14: 0 | J14: 0 | M14: =Jan!M14 -> Bankspesen/Zinsen | N14: 0
I15: 0 | J15: 0 | M15: =Jan!M15 -> Beratungskosten | N15: 0
I16: 0 | J16: 0 | M16: =Jan!M16 -> Gebühren-Beiträge | N16: 0
I17: 0 | J17: 0 | M17: =Jan!M17 -> KFZ-Betriebskosten | N17: 0
I18: 0 | J18: 0 | M18: =Jan!M18 -> Fahrt- und Reisekosten | N18: 0
I19: 0 | J19: 0 | M19: =Jan!M19 -> Betriebl.-Versicherung | N19: 0
I20: 0 | J20: 0 | M20: =Jan!M20 -> Weiterbildung/ Fachliteratur | N20: 0
I21: 0 | J21: 0 | M21: =Jan!M21 -> Geringw. Wirtschaftsgüter | N21: 0
I22: 0 | J22: 0 | M22: =Jan!M22 -> Gewerbl. Sozialversicherung | N22: 0
I23: 0 | J23: 0 | M23: =Jan!M23 -> Div. Steuern u. Abgaben | N23: 0
I24: 0 | J24: 0 | M24: =Jan!M24 -> Sonstige Ausgaben | N24: 0
I25: 0 | J25: 0 | M25: =Jan!M25 -> A-leer1 | N25: 0
I26: 0 | J26: 0 | M26: =Jan!M26 -> A-leer2 | N26: 0
I27: 0 | J27: 0 | M27: =Jan!M27 -> A-leer3 | N27: =SUMIF($K$3:$K$49,M27,$J$3:$J$49) -> 0
I28: 0 | J28: 0 | M28: - - - - - - - - - - - - - - - - - - - | O28: Einnahmen
I29: 0 | J29: 0 | M29: =Jan!M29 -> Handel | O29: =SUMIF($K$3:$K$49,M29,$J$3:$J$49) -> 0
I30: 0 | J30: 0 | M30: =Jan!M30 -> Dienstleistungen | O30: 0
I31: 0 | J31: 0 | M31: =Jan!M31 -> Diverse Gutschriften | O31: 0
I32: 0 | J32: 0 | M32: =Jan!M32 -> E-leer1 | O32: 0
I33: 0 | J33: 0 | M33: =Jan!M33 -> E-leer2 | O33: 0
I34: 0 | J34: 0 | M34: =Jan!M34 -> E-leer3 | O34: 0
I35: 0 | J35: 0 | M35: Summe Einnahmen *) | O35: =SUM(O29:O34) -> 0
A36: =IF(B36<>"",A35+1,"") ->  | I36: 0 | J36: =IF(F36<>"",F36-I36,(G36+I36)*-1) -> 0 | M36: *) gesplittet in Einnahmen mit 0% | O36: =IF(O35<>0,SUM(P3:P500),"") -> 
I37: 0 | J37: 0 | M37: *) gesplittet in Einnahmen mit 5% | O37: =IF(O35<>0,SUM(Q3:Q500),"") -> 
I38: 0 | J38: 0 | M38: *) gesplittet in Einnahmen mit 10% | O38: =IF(O35<>0,SUM(R3:R500),"") -> 
I39: 0 | J39: 0 | M39: *) gesplittet in Einnahmen mit 13% | O39: =IF(O35<>0,SUM(S3:S500),"") -> 
I40: 0 | J40: 0 | M40: *) gesplittet in Einnahmen mit 20% | O40: =IF(O35<>0,SUM(T3:T500),"") -> 
I41: 0 | J41: 0 | M41: Summe Ausgaben | N41: =SUM(N3:N27) -> 0
I42: 0 | J42: 0 | M42: =IF(N42>0,"Überschuss der Einnahmen","Überschuss der Ausgaben") -> Überschuss der Ausgaben | N42: =O35+N41 -> 0
I43: 0 | J43: 0 | M43: Vorsteuer | O43: =SUMIF(I3:I49,"<0",I3:I49)*(-1) -> 0
I44: 0 | J44: 0 | M44: Umsatzsteuer | O44: =SUMIF(I3:I49,">0",I3:I49) -> 0
I45: 0 | J45: 0 | M45: Zahllast Finanzamt | O45: =(O43-O44)*-1 -> 0
I46: 0 | J46: 0
I47: 0 | J47: 0
I48: 0 | J48: 0 | M48: ab Zelle 47 kann man bei Bedarf und pro Klick
A49: =IF(B49<>"",A48+1,"") ->  | I49: =IF(F49<>"",IF(H49=20%,F49/6,IF(H49=13%,F49/8.6923076,IF(H49=5%,F49/21,IF(H49=10%,F49/11,IF(H49=0%,F49*0))))),IF(H49=20%,G49/6*-1,IF(H49=13%,G49/8.6923076*-1,IF(H49=5%,G49/21*-1,IF(H49=10%,G49/11*-1,IF(H49=0%,G49*0)))))) -> 0 | J49: =IF(F49<>"",F49-I49,(G49+I49)*-1) -> 0 | P49: =IF(F49<>"",IF(H49=0%,F49-I49),"") ->  | Q49: =IF(F49<>"",IF(H49=5%,F49-I49),"") ->  | R49: =IF(F49<>"",IF(H49=10%,F49-I49),"") ->  | S49: =IF(F49<>"",IF(H49=13%,F49-I49),"") ->  | T49: =IF(F49<>"",IF(H49=20%,F49-I49),"") -> 
A50: Summe Einnahmen/ Ausgaben: | F50: =SUM(F3:F49) -> 0 | G50: =SUM(G3:G49) -> 0 | I50: =SUM(I3:I49) -> 0 | J50: =SUM(J3:J49) -> 0

Sheet Okt (hidden)
A1: Einnahmen/Ausgaben | E1: =Jan!E1 -> Firma Muster | J1: Okt | K1: =Jan!K1 -> 2022 | M1: Zusammenfassung
A2: lfd. Nr. | B2: Datum | C2: Kto | D2: Rechnung von/an | E2: Text | F2: E-Brutto | G2: A-Brutto | H2: MwSt. | I2: MwSt. Betr. | J2: Netto | K2: Zuordung Ausg/ Einn. | M2: Ausgaben-/ Einnahmenart | N2: Ausgaben | P2: 0% | Q2: 5% | R2: 10% | S2: 13% | T2: 20%
A3: =MAX(Sep!A3:A49)+1 -> 29 | I3: =IF(F3<>"",IF(H3=20%,F3/6,IF(H3=13%,F3/8.6923076,IF(H3=5%,F3/21,IF(H3=10%,F3/11,IF(H3=0%,F3*0))))),IF(H3=20%,G3/6*-1,IF(H3=13%,G3/8.6923076*-1,IF(H3=5%,G3/21*-1,IF(H3=10%,G3/11*-1,IF(H3=0%,G3*0)))))) -> 0 | J3: =IF(F3<>"",F3-I3,(G3+I3)*-1) -> 0 | M3: =Jan!M3 -> Investitionen *) | N3: =SUMIF($K$3:$K$49,M3,$J$3:$J$49) -> 0 | P3: =IF(F3<>"",IF(H3=0%,F3-I3),"") ->  | Q3: =IF(F3<>"",IF(H3=5%,F3-I3),"") ->  | R3: =IF(F3<>"",IF(H3=10%,F3-I3),"") ->  | S3: =IF(F3<>"",IF(H3=13%,F3-I3),"") ->  | T3: =IF(F3<>"",IF(H3=20%,F3-I3),"") -> 
A4: =IF(B4<>"",A3+1,"") ->  | I4: =IF(F4<>"",IF(H4=20%,F4/6,IF(H4=13%,F4/8.6923076,IF(H4=5%,F4/21,IF(H4=10%,F4/11,IF(H4=0%,F4*0))))),IF(H4=20%,G4/6*-1,IF(H4=13%,G4/8.6923076*-1,IF(H4=5%,G4/21*-1,IF(H4=10%,G4/11*-1,IF(H4=0%,G4*0)))))) -> 0 | J4: =IF(F4<>"",F4-I4,(G4+I4)*-1) -> 0 | M4: =Jan!M4 -> Abschreibungen (AfA *) | N4: 0 | P4: =IF(F4<>"",IF(H4=0%,F4-I4),"") ->  | Q4: =IF(F4<>"",IF(H4=5%,F4-I4),"") ->  | R4: =IF(F4<>"",IF(H4=10%,F4-I4),"") ->  | S4: =IF(F4<>"",IF(H4=13%,F4-I4),"") ->  | T4: =IF(F4<>"",IF(H4=20%,F4-I4),"") -> 
A5: =IF(B5<>"",A4+1,"") ->  | I5: 0 | J5: 0 | M5: =Jan!M5 -> Wareneinkäufe | N5: 0
A6: =IF(B6<>"",A5+1,"") ->  | I6: 0 | J6: =IF(F6<>"",F6-I6,(G6+I6)*-1) -> 0 | M6: =Jan!M6 -> Hilfs- u. Betriebsstoffe | N6: 0
I7: 0 | J7: 0 | M7: =Jan!M7 -> Personalkosten | N7: 0
I8: 0 | J8: 0 | M8: =Jan!M8 -> Fremdleistungen (z.B. Prov.) | N8: 0
I9: 0 | J9: 0 | M9: =Jan!M9 -> Miete-Betriebskosten | N9: 0
I10: 0 | J10: 0 | M10: =Jan!M10 -> Büromaterial, Deko, Verp. | N10: 0
I11: 0 | J11: 0 | M11: =Jan!M11 -> Marketing-Werbung | N11: 0
I12: 0 | J12: 0 | M12: =Jan!M12 -> Kommunikation & Porto | N12: 0
I13: 0 | J13: 0 | M13: =Jan!M13 -> Leasing | N13: 0
I14: 0 | J14: 0 | M14: =Jan!M14 -> Bankspesen/Zinsen | N14: 0
I15: 0 | J15: 0 | M15: =Jan!M15 -> Beratungskosten | N15: 0
I16: 0 | J16: 0 | M16: =Jan!M16 -> Gebühren-Beiträge | N16: 0
I17: 0 | J17: 0 | M17: =Jan!M17 -> KFZ-Betriebskosten | N17: 0
I18: 0 | J18: 0 | M18: =Jan!M18 -> Fahrt- und Reisekosten | N18: 0
I19: 0 | J19: 0 | M19: =Jan!M19 -> Betriebl.-Versicherung | N19: 0
I20: 0 | J20: 0 | M20: =Jan!M20 -> Weiterbildung/ Fachliteratur | N20: 0
I21: 0 | J21: 0 | M21: =Jan!M21 -> Geringw. Wirtschaftsgüter | N21: 0
I22: 0 | J22: 0 | M22: =Jan!M22 -> Gewerbl. Sozialversicherung | N22: 0
I23: 0 | J23: 0 | M23: =Jan!M23 -> Div. Steuern u. Abgaben | N23: 0
I24: 0 | J24: 0 | M24: =Jan!M24 -> Sonstige Ausgaben | N24: 0
I25: 0 | J25: 0 | M25: =Jan!M25 -> A-leer1 | N25: 0
I26: 0 | J26: 0 | M26: =Jan!M26 -> A-leer2 | N26: 0
I27: 0 | J27: 0 | M27: =Jan!M27 -> A-leer3 | N27: =SUMIF($K$3:$K$49,M27,$J$3:$J$49) -> 0
I28: 0 | J28: 0 | M28: - - - - - - - - - - - - - - - - - - - | O28: Einnahmen
I29: 0 | J29: 0 | M29: =Jan!M29 -> Handel | O29: =SUMIF($K$3:$K$49,M29,$J$3:$J$49) -> 0
I30: 0 | J30: 0 | M30: =Jan!M30 -> Dienstleistungen | O30: 0
I31: 0 | J31: 0 | M31: =Jan!M31 -> Diverse Gutschriften | O31: 0
I32: 0 | J32: 0 | M32: =Jan!M32 -> E-leer1 | O32: 0
I33: 0 | J33: 0 | M33: =Jan!M33 -> E-leer2 | O33: 0
I34: 0 | J34: 0 | M34: =Jan!M34 -> E-leer3 | O34: 0
I35: 0 | J35: 0 | M35: Summe Einnahmen *) | O35: =SUM(O29:O34) -> 0
A36: =IF(B36<>"",A35+1,"") ->  | I36: 0 | J36: =IF(F36<>"",F36-I36,(G36+I36)*-1) -> 0 | M36: *) gesplittet in Einnahmen mit 0% | O36: =IF(O35<>0,SUM(P3:P500),"") -> 
I37: 0 | J37: 0 | M37: *) gesplittet in Einnahmen mit 5% | O37: =IF(O35<>0,SUM(Q3:Q500),"") -> 
I38: 0 | J38: 0 | M38: *) gesplittet in Einnahmen mit 10% | O38: =IF(O35<>0,SUM(R3:R500),"") -> 
I39: 0 | J39: 0 | M39: *) gesplittet in Einnahmen mit 13% | O39: =IF(O35<>0,SUM(S3:S500),"") -> 
I40: 0 | J40: 0 | M40: *) gesplittet in Einnahmen mit 20% | O40: =IF(O35<>0,SUM(T3:T500),"") -> 
I41: 0 | J41: 0 | M41: Summe Ausgaben | N41: =SUM(N3:N27) -> 0
I42: 0 | J42: 0 | M42: =IF(N42>0,"Überschuss der Einnahmen","Überschuss der Ausgaben") -> Überschuss der Ausgaben | N42: =O35+N41 -> 0
I43: 0 | J43: 0 | M43: Vorsteuer | O43: =SUMIF(I3:I49,"<0",I3:I49)*(-1) -> 0
I44: 0 | J44: 0 | M44: Umsatzsteuer | O44: =SUMIF(I3:I49,">0",I3:I49) -> 0
I45: 0 | J45: 0 | M45: Zahllast Finanzamt | O45: =(O43-O44)*-1 -> 0
I46: 0 | J46: 0
I47: 0 | J47: 0
I48: 0 | J48: 0 | M48: ab Zelle 47 kann man bei Bedarf und pro Klick
A49: =IF(B49<>"",A48+1,"") ->  | I49: =IF(F49<>"",IF(H49=20%,F49/6,IF(H49=13%,F49/8.6923076,IF(H49=5%,F49/21,IF(H49=10%,F49/11,IF(H49=0%,F49*0))))),IF(H49=20%,G49/6*-1,IF(H49=13%,G49/8.6923076*-1,IF(H49=5%,G49/21*-1,IF(H49=10%,G49/11*-1,IF(H49=0%,G49*0)))))) -> 0 | J49: =IF(F49<>"",F49-I49,(G49+I49)*-1) -> 0 | P49: =IF(F49<>"",IF(H49=0%,F49-I49),"") ->  | Q49: =IF(F49<>"",IF(H49=5%,F49-I49),"") ->  | R49: =IF(F49<>"",IF(H49=10%,F49-I49),"") ->  | S49: =IF(F49<>"",IF(H49=13%,F49-I49),"") ->  | T49: =IF(F49<>"",IF(H49=20%,F49-I49),"") -> 
A50: Summe Einnahmen/ Ausgaben: | F50: =SUM(F3:F49) -> 0 | G50: =SUM(G3:G49) -> 0 | I50: =SUM(I3:I49) -> 0 | J50: =SUM(J3:J49) -> 0

Sheet Nov (hidden)
A1: Einnahmen/Ausgaben | E1: =Jan!E1 -> Firma Muster | J1: Nov | K1: =Jan!K1 -> 2022 | M1: Zusammenfassung
A2: lfd. Nr. | B2: Datum | C2: Kto | D2: Rechnung von/an | E2: Text | F2: E-Brutto | G2: A-Brutto | H2: MwSt. | I2: MwSt. Betr. | J2: Netto | K2: Zuordung Ausg/ Einn. | M2: Ausgaben-/ Einnahmenart | N2: Ausgaben | P2: 0% | Q2: 5% | R2: 10% | S2: 13% | T2: 20%
A3: =MAX(Okt!A3:A49)+1 -> 30 | I3: =IF(F3<>"",IF(H3=20%,F3/6,IF(H3=13%,F3/8.6923076,IF(H3=5%,F3/21,IF(H3=10%,F3/11,IF(H3=0%,F3*0))))),IF(H3=20%,G3/6*-1,IF(H3=13%,G3/8.6923076*-1,IF(H3=5%,G3/21*-1,IF(H3=10%,G3/11*-1,IF(H3=0%,G3*0)))))) -> 0 | J3: =IF(F3<>"",F3-I3,(G3+I3)*-1) -> 0 | M3: =Jan!M3 -> Investitionen *) | N3: =SUMIF($K$3:$K$49,M3,$J$3:$J$49) -> 0 | P3: =IF(F3<>"",IF(H3=0%,F3-I3),"") ->  | Q3: =IF(F3<>"",IF(H3=5%,F3-I3),"") ->  | R3: =IF(F3<>"",IF(H3=10%,F3-I3),"") ->  | S3: =IF(F3<>"",IF(H3=13%,F3-I3),"") ->  | T3: =IF(F3<>"",IF(H3=20%,F3-I3),"") -> 
A4: =IF(B4<>"",A3+1,"") ->  | I4: =IF(F4<>"",IF(H4=20%,F4/6,IF(H4=13%,F4/8.6923076,IF(H4=5%,F4/21,IF(H4=10%,F4/11,IF(H4=0%,F4*0))))),IF(H4=20%,G4/6*-1,IF(H4=13%,G4/8.6923076*-1,IF(H4=5%,G4/21*-1,IF(H4=10%,G4/11*-1,IF(H4=0%,G4*0)))))) -> 0 | J4: =IF(F4<>"",F4-I4,(G4+I4)*-1) -> 0 | M4: =Jan!M4 -> Abschreibungen (AfA *) | N4: 0 | P4: =IF(F4<>"",IF(H4=0%,F4-I4),"") ->  | Q4: =IF(F4<>"",IF(H4=5%,F4-I4),"") ->  | R4: =IF(F4<>"",IF(H4=10%,F4-I4),"") ->  | S4: =IF(F4<>"",IF(H4=13%,F4-I4),"") ->  | T4: =IF(F4<>"",IF(H4=20%,F4-I4),"") -> 
A5: =IF(B5<>"",A4+1,"") ->  | I5: 0 | J5: 0 | M5: =Jan!M5 -> Wareneinkäufe | N5: 0
A6: =IF(B6<>"",A5+1,"") ->  | I6: 0 | J6: =IF(F6<>"",F6-I6,(G6+I6)*-1) -> 0 | M6: =Jan!M6 -> Hilfs- u. Betriebsstoffe | N6: 0
I7: 0 | J7: 0 | M7: =Jan!M7 -> Personalkosten | N7: 0
I8: 0 | J8: 0 | M8: =Jan!M8 -> Fremdleistungen (z.B. Prov.) | N8: 0
I9: 0 | J9: 0 | M9: =Jan!M9 -> Miete-Betriebskosten | N9: 0
I10: 0 | J10: 0 | M10: =Jan!M10 -> Büromaterial, Deko, Verp. | N10: 0
I11: 0 | J11: 0 | M11: =Jan!M11 -> Marketing-Werbung | N11: 0
I12: 0 | J12: 0 | M12: =Jan!M12 -> Kommunikation & Porto | N12: 0
I13: 0 | J13: 0 | M13: =Jan!M13 -> Leasing | N13: 0
I14: 0 | J14: 0 | M14: =Jan!M14 -> Bankspesen/Zinsen | N14: 0
I15: 0 | J15: 0 | M15: =Jan!M15 -> Beratungskosten | N15: 0
I16: 0 | J16: 0 | M16: =Jan!M16 -> Gebühren-Beiträge | N16: 0
I17: 0 | J17: 0 | M17: =Jan!M17 -> KFZ-Betriebskosten | N17: 0
I18: 0 | J18: 0 | M18: =Jan!M18 -> Fahrt- und Reisekosten | N18: 0
I19: 0 | J19: 0 | M19: =Jan!M19 -> Betriebl.-Versicherung | N19: 0
I20: 0 | J20: 0 | M20: =Jan!M20 -> Weiterbildung/ Fachliteratur | N20: 0
I21: 0 | J21: 0 | M21: =Jan!M21 -> Geringw. Wirtschaftsgüter | N21: 0
I22: 0 | J22: 0 | M22: =Jan!M22 -> Gewerbl. Sozialversicherung | N22: 0
I23: 0 | J23: 0 | M23: =Jan!M23 -> Div. Steuern u. Abgaben | N23: 0
I24: 0 | J24: 0 | M24: =Jan!M24 -> Sonstige Ausgaben | N24: 0
I25: 0 | J25: 0 | M25: =Jan!M25 -> A-leer1 | N25: 0
I26: 0 | J26: 0 | M26: =Jan!M26 -> A-leer2 | N26: 0
I27: 0 | J27: 0 | M27: =Jan!M27 -> A-leer3 | N27: =SUMIF($K$3:$K$49,M27,$J$3:$J$49) -> 0
I28: 0 | J28: 0 | M28: - - - - - - - - - - - - - - - - - - - | O28: Einnahmen
I29: 0 | J29: 0 | M29: =Jan!M29 -> Handel | O29: =SUMIF($K$3:$K$49,M29,$J$3:$J$49) -> 0
I30: 0 | J30: 0 | M30: =Jan!M30 -> Dienstleistungen | O30: 0
I31: 0 | J31: 0 | M31: =Jan!M31 -> Diverse Gutschriften | O31: 0
I32: 0 | J32: 0 | M32: =Jan!M32 -> E-leer1 | O32: 0
I33: 0 | J33: 0 | M33: =Jan!M33 -> E-leer2 | O33: 0
I34: 0 | J34: 0 | M34: =Jan!M34 -> E-leer3 | O34: 0
I35: 0 | J35: 0 | M35: Summe Einnahmen *) | O35: =SUM(O29:O34) -> 0
A36: =IF(B36<>"",A35+1,"") ->  | I36: 0 | J36: =IF(F36<>"",F36-I36,(G36+I36)*-1) -> 0 | M36: *) gesplittet in Einnahmen mit 0% | O36: =IF(O35<>0,SUM(P3:P500),"") -> 
I37: 0 | J37: 0 | M37: *) gesplittet in Einnahmen mit 5% | O37: =IF(O35<>0,SUM(Q3:Q500),"") -> 
I38: 0 | J38: 0 | M38: *) gesplittet in Einnahmen mit 10% | O38: =IF(O35<>0,SUM(R3:R500),"") -> 
I39: 0 | J39: 0 | M39: *) gesplittet in Einnahmen mit 13% | O39: =IF(O35<>0,SUM(S3:S500),"") -> 
I40: 0 | J40: 0 | M40: *) gesplittet in Einnahmen mit 20% | O40: =IF(O35<>0,SUM(T3:T500),"") -> 
I41: 0 | J41: 0 | M41: Summe Ausgaben | N41: =SUM(N3:N27) -> 0
I42: 0 | J42: 0 | M42: =IF(N42>0,"Überschuss der Einnahmen","Überschuss der Ausgaben") -> Überschuss der Ausgaben | N42: =O35+N41 -> 0
I43: 0 | J43: 0 | M43: Vorsteuer | O43: =SUMIF(I3:I49,"<0",I3:I49)*(-1) -> 0
I44: 0 | J44: 0 | M44: Umsatzsteuer | O44: =SUMIF(I3:I49,">0",I3:I49) -> 0
I45: 0 | J45: 0 | M45: Zahllast Finanzamt | O45: =(O43-O44)*-1 -> 0
I46: 0 | J46: 0
I47: 0 | J47: 0
I48: 0 | J48: 0 | M48: ab Zelle 47 kann man bei Bedarf und pro Klick
A49: =IF(B49<>"",A48+1,"") ->  | I49: =IF(F49<>"",IF(H49=20%,F49/6,IF(H49=13%,F49/8.6923076,IF(H49=5%,F49/21,IF(H49=10%,F49/11,IF(H49=0%,F49*0))))),IF(H49=20%,G49/6*-1,IF(H49=13%,G49/8.6923076*-1,IF(H49=5%,G49/21*-1,IF(H49=10%,G49/11*-1,IF(H49=0%,G49*0)))))) -> 0 | J49: =IF(F49<>"",F49-I49,(G49+I49)*-1) -> 0 | P49: =IF(F49<>"",IF(H49=0%,F49-I49),"") ->  | Q49: =IF(F49<>"",IF(H49=5%,F49-I49),"") ->  | R49: =IF(F49<>"",IF(H49=10%,F49-I49),"") ->  | S49: =IF(F49<>"",IF(H49=13%,F49-I49),"") ->  | T49: =IF(F49<>"",IF(H49=20%,F49-I49),"") -> 
A50: Summe Einnahmen/ Ausgaben: | F50: =SUM(F3:F49) -> 0 | G50: =SUM(G3:G49) -> 0 | I50: =SUM(I3:I49) -> 0 | J50: =SUM(J3:J49) -> 0

Sheet Dez (hidden)
A1: Einnahmen/Ausgaben | E1: =Jan!E1 -> Firma Muster | J1: Dez | K1: =Jan!K1 -> 2022 | M1: Zusammenfassung
A2: lfd. Nr. | B2: Datum | C2: Kto | D2: Rechnung von/an | E2: Text | F2: E-Brutto | G2: A-Brutto | H2: MwSt. | I2: MwSt. Betr. | J2: Netto | K2: Zuordung Ausg/ Einn. | M2: Ausgaben-/ Einnahmenart | N2: Ausgaben | P2: 0% | Q2: 5% | R2: 10% | S2: 13% | T2: 20%
A3: =MAX(Nov!A3:A49)+1 -> 31 | I3: =IF(F3<>"",IF(H3=20%,F3/6,IF(H3=13%,F3/8.6923076,IF(H3=5%,F3/21,IF(H3=10%,F3/11,IF(H3=0%,F3*0))))),IF(H3=20%,G3/6*-1,IF(H3=13%,G3/8.6923076*-1,IF(H3=5%,G3/21*-1,IF(H3=10%,G3/11*-1,IF(H3=0%,G3*0)))))) -> 0 | J3: =IF(F3<>"",F3-I3,(G3+I3)*-1) -> 0 | M3: =Jan!M3 -> Investitionen *) | N3: =SUMIF($K$3:$K$49,M3,$J$3:$J$49) -> 0 | P3: =IF(F3<>"",IF(H3=0%,F3-I3),"") ->  | Q3: =IF(F3<>"",IF(H3=5%,F3-I3),"") ->  | R3: =IF(F3<>"",IF(H3=10%,F3-I3),"") ->  | S3: =IF(F3<>"",IF(H3=13%,F3-I3),"") ->  | T3: =IF(F3<>"",IF(H3=20%,F3-I3),"") -> 
A4: =IF(B4<>"",A3+1,"") ->  | I4: =IF(F4<>"",IF(H4=20%,F4/6,IF(H4=13%,F4/8.6923076,IF(H4=5%,F4/21,IF(H4=10%,F4/11,IF(H4=0%,F4*0))))),IF(H4=20%,G4/6*-1,IF(H4=13%,G4/8.6923076*-1,IF(H4=5%,G4/21*-1,IF(H4=10%,G4/11*-1,IF(H4=0%,G4*0)))))) -> 0 | J4: =IF(F4<>"",F4-I4,(G4+I4)*-1) -> 0 | M4: =Jan!M4 -> Abschreibungen (AfA *) | N4: 0 | P4: =IF(F4<>"",IF(H4=0%,F4-I4),"") ->  | Q4: =IF(F4<>"",IF(H4=5%,F4-I4),"") ->  | R4: =IF(F4<>"",IF(H4=10%,F4-I4),"") ->  | S4: =IF(F4<>"",IF(H4=13%,F4-I4),"") ->  | T4: =IF(F4<>"",IF(H4=20%,F4-I4),"") -> 
A5: =IF(B5<>"",A4+1,"") ->  | I5: 0 | J5: 0 | M5: =Jan!M5 -> Wareneinkäufe | N5: 0
A6: =IF(B6<>"",A5+1,"") ->  | I6: 0 | J6: =IF(F6<>"",F6-I6,(G6+I6)*-1) -> 0 | M6: =Jan!M6 -> Hilfs- u. Betriebsstoffe | N6: 0
I7: 0 | J7: 0 | M7: =Jan!M7 -> Personalkosten | N7: 0
I8: 0 | J8: 0 | M8: =Jan!M8 -> Fremdleistungen (z.B. Prov.) | N8: 0
I9: 0 | J9: 0 | M9: =Jan!M9 -> Miete-Betriebskosten | N9: 0
I10: 0 | J10: 0 | M10: =Jan!M10 -> Büromaterial, Deko, Verp. | N10: 0
I11: 0 | J11: 0 | M11: =Jan!M11 -> Marketing-Werbung | N11: 0
I12: 0 | J12: 0 | M12: =Jan!M12 -> Kommunikation & Porto | N12: 0
I13: 0 | J13: 0 | M13: =Jan!M13 -> Leasing | N13: 0
I14: 0 | J14: 0 | M14: =Jan!M14 -> Bankspesen/Zinsen | N14: 0
I15: 0 | J15: 0 | M15: =Jan!M15 -> Beratungskosten | N15: 0
I16: 0 | J16: 0 | M16: =Jan!M16 -> Gebühren-Beiträge | N16: 0
I17: 0 | J17: 0 | M17: =Jan!M17 -> KFZ-Betriebskosten | N17: 0
I18: 0 | J18: 0 | M18: =Jan!M18 -> Fahrt- und Reisekosten | N18: 0
I19: 0 | J19: 0 | M19: =Jan!M19 -> Betriebl.-Versicherung | N19: 0
I20: 0 | J20: 0 | M20: =Jan!M20 -> Weiterbildung/ Fachliteratur | N20: 0
I21: 0 | J21: 0 | M21: =Jan!M21 -> Geringw. Wirtschaftsgüter | N21: 0
I22: 0 | J22: 0 | M22: =Jan!M22 -> Gewerbl. Sozialversicherung | N22: 0
I23: 0 | J23: 0 | M23: =Jan!M23 -> Div. Steuern u. Abgaben | N23: 0
I24: 0 | J24: 0 | M24: =Jan!M24 -> Sonstige Ausgaben | N24: 0
I25: 0 | J25: 0 | M25: =Jan!M25 -> A-leer1 | N25: 0
I26: 0 | J26: 0 | M26: =Jan!M26 -> A-leer2 | N26: 0
I27: 0 | J27: 0 | M27: =Jan!M27 -> A-leer3 | N27: 0
I28: 0 | J28: 0 | M28: - - - - - - - - - - - - - - - - - - - | O28: Einnahmen
I29: 0 | J29: 0 | M29: =Jan!M29 -> Handel | O29: =SUMIF($K$3:$K$49,M29,$J$3:$J$49) -> 0
I30: 0 | J30: 0 | M30: =Jan!M30 -> Dienstleistungen | O30: 0
I31: 0 | J31: 0 | M31: =Jan!M31 -> Diverse Gutschriften | O31: 0
I32: 0 | J32: 0 | M32: =Jan!M32 -> E-leer1 | O32: 0
I33: 0 | J33: 0 | M33: =Jan!M33 -> E-leer2 | O33: 0
I34: 0 | J34: 0 | M34: =Jan!M34 -> E-leer3 | O34: 0
I35: 0 | J35: 0 | M35: Summe Einnahmen *) | O35: =SUM(O29:O34) -> 0
A36: =IF(B36<>"",A35+1,"") ->  | I36: 0 | J36: =IF(F36<>"",F36-I36,(G36+I36)*-1) -> 0 | M36: *) gesplittet in Einnahmen mit 0% | O36: =IF(O35<>0,SUM(P3:P500),"") -> 
I37: 0 | J37: 0 | M37: *) gesplittet in Einnahmen mit 5% | O37: =IF(O35<>0,SUM(Q3:Q500),"") -> 
I38: 0 | J38: 0 | M38: *) gesplittet in Einnahmen mit 10% | O38: =IF(O35<>0,SUM(R3:R500),"") -> 
I39: 0 | J39: 0 | M39: *) gesplittet in Einnahmen mit 13% | O39: =IF(O35<>0,SUM(S3:S500),"") -> 
I40: 0 | J40: 0 | M40: *) gesplittet in Einnahmen mit 20% | O40: =IF(O35<>0,SUM(T3:T500),"") -> 
I41: 0 | J41: 0 | M41: Summe Ausgaben | N41: =SUM(N3:N27) -> 0
I42: 0 | J42: 0 | M42: =IF(N42>0,"Überschuss der Einnahmen","Überschuss der Ausgaben") -> Überschuss der Ausgaben | N42: =O35+N41 -> 0
I43: 0 | J43: 0 | M43: Vorsteuer | O43: =SUMIF(I3:I49,"<0",I3:I49)*(-1) -> 0
I44: 0 | J44: 0 | M44: Umsatzsteuer | O44: =SUMIF(I3:I49,">0",I3:I49) -> 0
I45: 0 | J45: 0 | M45: Zahllast Finanzamt | O45: =(O43-O44)*-1 -> 0
I46: 0 | J46: 0
I47: 0 | J47: 0
I48: 0 | J48: 0 | M48: ab Zelle 47 kann man bei Bedarf und pro Klick
A49: =IF(B49<>"",#REF!+1,"") ->  | I49: =IF(F49<>"",IF(H49=20%,F49/6,IF(H49=13%,F49/8.6923076,IF(H49=5%,F49/21,IF(H49=10%,F49/11,IF(H49=0%,F49*0))))),IF(H49=20%,G49/6*-1,IF(H49=13%,G49/8.6923076*-1,IF(H49=5%,G49/21*-1,IF(H49=10%,G49/11*-1,IF(H49=0%,G49*0)))))) -> 0 | J49: =IF(F49<>"",F49-I49,(G49+I49)*-1) -> 0 | P49: =IF(F49<>"",IF(H49=0%,F49-I49),"") ->  | Q49: =IF(F49<>"",IF(H49=5%,F49-I49),"") ->  | R49: =IF(F49<>"",IF(H49=10%,F49-I49),"") ->  | S49: =IF(F49<>"",IF(H49=13%,F49-I49),"") ->  | T49: =IF(F49<>"",IF(H49=20%,F49-I49),"") -> 
A50: Summe Einnahmen/ Ausgaben: | F50: =SUM(F3:F49) -> 0 | G50: =SUM(G3:G49) -> 0 | I50: =SUM(I3:I49) -> 0 | J50: =SUM(J3:J49) -> 0

Sheet Summe
A1: GESAMTERGEBNIS zu UMSATZ, ERTRAG und ZAHLLAST | G1: =Jan!K1 -> 2022 | M1: =Jan!E1 -> Firma Muster
A2: Ausgaben-/ Einnahmenart | B2: =Jan!J1 -> Jan | C2: =Feb!J1 -> Feb | D2: =Mar!J1 -> Mar | E2: 1. QU | F2: =Apr!J1 -> Apr | G2: =Mai!J1 -> Mai | H2: =Jun!J1 -> Jun | I2: 2. QU | J2: =Jul!J1 -> Jul | K2: =Aug!J1 -> Aug | L2: =Sep!J1 -> Sep | M2: 3. QU | N2: =Okt!J1 -> Okt | O2: =Nov!J1 -> Nov | P2: =Dez!J1 -> Dez | Q2: 4. Qu | R2: SUMME
A3: =Jan!M3 -> Investitionen *) | B3: =Jan!N3 -> 120 | C3: =Feb!N3 -> 0 | D3: =Mar!N3 -> 0 | E3: =SUM(B3:D3) -> 120 | F3: =Apr!N3 -> 0 | G3: =Mai!N3 -> 0 | H3: =Jun!N3 -> 0 | I3: =SUM(F3:H3) -> 0 | J3: =Jul!N3 -> 0 | K3: =Aug!N3 -> 0 | L3: =Sep!N3 -> 0 | M3: =SUM(J3:L3) -> 0 | N3: =Okt!N3 -> 0 | O3: =Nov!N3 -> 0 | P3: =Dez!N3 -> 0 | Q3: =SUM(N3:P3) -> 0 | R3: =E3+I3+M3+Q3 -> 120
A4: =Jan!M4 -> Abschreibungen (AfA *) | B4: =Jan!N4 -> 0 | C4: =Feb!N4 -> 0 | D4: =Mar!N4 -> 0 | E4: =SUM(B4:D4) -> 0 | F4: =Apr!N4 -> 0 | G4: =Mai!N4 -> 0 | H4: =Jun!N4 -> 0 | I4: =SUM(F4:H4) -> 0 | J4: =Jul!N4 -> 0 | K4: =Aug!N4 -> 0 | L4: =Sep!N4 -> 0 | M4: =SUM(J4:L4) -> 0 | N4: =Okt!N4 -> 0 | O4: =Nov!N4 -> 0 | P4: =Dez!N4 -> 0 | Q4: =SUM(N4:P4) -> 0 | R4: =E4+I4+M4+Q4 -> 0
A5: =Jan!M5 -> Wareneinkäufe | B5: =Jan!N5 -> 0 | C5: =Feb!N5 -> 0 | D5: =Mar!N5 -> 0 | E5: 0 | F5: =Apr!N5 -> 0 | G5: =Mai!N5 -> 0 | H5: =Jun!N5 -> 0 | I5: 0 | J5: =Jul!N5 -> 0 | K5: =Aug!N5 -> 0 | L5: =Sep!N5 -> 0 | M5: 0 | N5: =Okt!N5 -> 0 | O5: =Nov!N5 -> 0 | P5: =Dez!N5 -> 0 | Q5: 0 | R5: 0
A6: =Jan!M6 -> Hilfs- u. Betriebsstoffe | B6: =Jan!N6 -> 0 | C6: =Feb!N6 -> 0 | D6: =Mar!N6 -> 0 | E6: 0 | F6: =Apr!N6 -> 0 | G6: =Mai!N6 -> 0 | H6: =Jun!N6 -> 0 | I6: 0 | J6: =Jul!N6 -> 0 | K6: =Aug!N6 -> 0 | L6: =Sep!N6 -> 0 | M6: 0 | N6: =Okt!N6 -> 0 | O6: =Nov!N6 -> 0 | P6: =Dez!N6 -> 0 | Q6: 0 | R6: 0
A7: =Jan!M7 -> Personalkosten | B7: =Jan!N7 -> 0 | C7: =Feb!N7 -> 0 | D7: =Mar!N7 -> 0 | E7: 0 | F7: =Apr!N7 -> 0 | G7: =Mai!N7 -> 0 | H7: =Jun!N7 -> 0 | I7: 0 | J7: =Jul!N7 -> 0 | K7: =Aug!N7 -> 0 | L7: =Sep!N7 -> 0 | M7: 0 | N7: =Okt!N7 -> 0 | O7: =Nov!N7 -> 0 | P7: =Dez!N7 -> 0 | Q7: 0 | R7: 0
A8: =Jan!M8 -> Fremdleistungen (z.B. Prov.) | B8: =Jan!N8 -> 0 | C8: =Feb!N8 -> 0 | D8: =Mar!N8 -> 0 | E8: 0 | F8: =Apr!N8 -> 0 | G8: =Mai!N8 -> 0 | H8: =Jun!N8 -> 0 | I8: 0 | J8: =Jul!N8 -> 0 | K8: =Aug!N8 -> 0 | L8: =Sep!N8 -> 0 | M8: 0 | N8: =Okt!N8 -> 0 | O8: =Nov!N8 -> 0 | P8: =Dez!N8 -> 0 | Q8: 0 | R8: 0
A9: =Jan!M9 -> Miete-Betriebskosten | B9: =Jan!N9 -> 0 | C9: =Feb!N9 -> 0 | D9: =Mar!N9 -> 0 | E9: 0 | F9: =Apr!N9 -> 0 | G9: =Mai!N9 -> 0 | H9: =Jun!N9 -> 0 | I9: 0 | J9: =Jul!N9 -> 0 | K9: =Aug!N9 -> 0 | L9: =Sep!N9 -> 0 | M9: 0 | N9: =Okt!N9 -> 0 | O9: =Nov!N9 -> 0 | P9: =Dez!N9 -> 0 | Q9: 0 | R9: 0
A10: =Jan!M10 -> Büromaterial, Deko, Verp. | B10: =Jan!N10 -> -28.33 | C10: =Feb!N10 -> 0 | D10: =Mar!N10 -> 0 | E10: -28.33 | F10: =Apr!N10 -> 0 | G10: =Mai!N10 -> 0 | H10: =Jun!N10 -> 0 | I10: 0 | J10: =Jul!N10 -> 0 | K10: =Aug!N10 -> 0 | L10: =Sep!N10 -> 0 | M10: 0 | N10: =Okt!N10 -> 0 | O10: =Nov!N10 -> 0 | P10: =Dez!N10 -> 0 | Q10: 0 | R10: -28.33
A11: =Jan!M11 -> Marketing-Werbung | B11: =Jan!N11 -> -215.79 | C11: =Feb!N11 -> 0 | D11: =Mar!N11 -> 0 | E11: -215.79 | F11: =Apr!N11 -> 0 | G11: =Mai!N11 -> 0 | H11: =Jun!N11 -> 0 | I11: 0 | J11: =Jul!N11 -> 0 | K11: =Aug!N11 -> 0 | L11: =Sep!N11 -> 0 | M11: 0 | N11: =Okt!N11 -> 0 | O11: =Nov!N11 -> 0 | P11: =Dez!N11 -> 0 | Q11: 0 | R11: -215.79
A12: =Jan!M12 -> Kommunikation & Porto | B12: =Jan!N12 -> -25 | C12: =Feb!N12 -> 0 | D12: =Mar!N12 -> 0 | E12: -25 | F12: =Apr!N12 -> 0 | G12: =Mai!N12 -> 0 | H12: =Jun!N12 -> 0 | I12: 0 | J12: =Jul!N12 -> 0 | K12: =Aug!N12 -> 0 | L12: =Sep!N12 -> 0 | M12: 0 | N12: =Okt!N12 -> 0 | O12: =Nov!N12 -> 0 | P12: =Dez!N12 -> 0 | Q12: 0 | R12: -25
A13: =Jan!M13 -> Leasing | B13: =Jan!N13 -> 0 | C13: =Feb!N13 -> 0 | D13: =Mar!N13 -> 0 | E13: 0 | F13: =Apr!N13 -> 0 | G13: =Mai!N13 -> 0 | H13: =Jun!N13 -> 0 | I13: 0 | J13: =Jul!N13 -> 0 | K13: =Aug!N13 -> 0 | L13: =Sep!N13 -> 0 | M13: 0 | N13: =Okt!N13 -> 0 | O13: =Nov!N13 -> 0 | P13: =Dez!N13 -> 0 | Q13: 0 | R13: 0
A14: =Jan!M14 -> Bankspesen/Zinsen | B14: =Jan!N14 -> 0 | C14: =Feb!N14 -> 0 | D14: =Mar!N14 -> 0 | E14: 0 | F14: =Apr!N14 -> 0 | G14: =Mai!N14 -> 0 | H14: =Jun!N14 -> 0 | I14: 0 | J14: =Jul!N14 -> 0 | K14: =Aug!N14 -> 0 | L14: =Sep!N14 -> 0 | M14: 0 | N14: =Okt!N14 -> 0 | O14: =Nov!N14 -> 0 | P14: =Dez!N14 -> 0 | Q14: 0 | R14: 0
A15: =Jan!M15 -> Beratungskosten | B15: =Jan!N15 -> 0 | C15: =Feb!N15 -> 0 | D15: =Mar!N15 -> 0 | E15: 0 | F15: =Apr!N15 -> 0 | G15: =Mai!N15 -> 0 | H15: =Jun!N15 -> 0 | I15: 0 | J15: =Jul!N15 -> 0 | K15: =Aug!N15 -> 0 | L15: =Sep!N15 -> 0 | M15: 0 | N15: =Okt!N15 -> 0 | O15: =Nov!N15 -> 0 | P15: =Dez!N15 -> 0 | Q15: 0 | R15: 0
A16: =Jan!M16 -> Gebühren-Beiträge | B16: =Jan!N16 -> -160 | C16: =Feb!N16 -> 0 | D16: =Mar!N16 -> 0 | E16: -160 | F16: =Apr!N16 -> 0 | G16: =Mai!N16 -> 0 | H16: =Jun!N16 -> 0 | I16: 0 | J16: =Jul!N16 -> 0 | K16: =Aug!N16 -> 0 | L16: =Sep!N16 -> 0 | M16: 0 | N16: =Okt!N16 -> 0 | O16: =Nov!N16 -> 0 | P16: =Dez!N16 -> 0 | Q16: 0 | R16: -160
A17: =Jan!M17 -> KFZ-Betriebskosten | B17: =Jan!N17 -> -195 | C17: =Feb!N17 -> 0 | D17: =Mar!N17 -> 0 | E17: -195 | F17: =Apr!N17 -> 0 | G17: =Mai!N17 -> 0 | H17: =Jun!N17 -> 0 | I17: 0 | J17: =Jul!N17 -> 0 | K17: =Aug!N17 -> 0 | L17: =Sep!N17 -> 0 | M17: 0 | N17: =Okt!N17 -> 0 | O17: =Nov!N17 -> 0 | P17: =Dez!N17 -> 0 | Q17: 0 | R17: -195
A18: =Jan!M18 -> Fahrt- und Reisekosten | B18: =Jan!N18 -> -965.43 | C18: =Feb!N18 -> 0 | D18: =Mar!N18 -> 0 | E18: -965.43 | F18: =Apr!N18 -> 0 | G18: =Mai!N18 -> 0 | H18: =Jun!N18 -> 0 | I18: 0 | J18: =Jul!N18 -> 0 | K18: =Aug!N18 -> 0 | L18: =Sep!N18 -> 0 | M18: 0 | N18: =Okt!N18 -> 0 | O18: =Nov!N18 -> 0 | P18: =Dez!N18 -> 0 | Q18: 0 | R18: -965.43
A19: =Jan!M19 -> Betriebl.-Versicherung | B19: =Jan!N19 -> -159.12 | C19: =Feb!N19 -> 0 | D19: =Mar!N19 -> 0 | E19: -159.12 | F19: =Apr!N19 -> 0 | G19: =Mai!N19 -> 0 | H19: =Jun!N19 -> 0 | I19: 0 | J19: =Jul!N19 -> 0 | K19: =Aug!N19 -> 0 | L19: =Sep!N19 -> 0 | M19: 0 | N19: =Okt!N19 -> 0 | O19: =Nov!N19 -> 0 | P19: =Dez!N19 -> 0 | Q19: 0 | R19: -159.12
A20: =Jan!M20 -> Weiterbildung/ Fachliteratur | B20: =Jan!N20 -> -182.73 | C20: =Feb!N20 -> 0 | D20: =Mar!N20 -> 0 | E20: -182.73 | F20: =Apr!N20 -> 0 | G20: =Mai!N20 -> 0 | H20: =Jun!N20 -> 0 | I20: 0 | J20: =Jul!N20 -> 0 | K20: =Aug!N20 -> 0 | L20: =Sep!N20 -> 0 | M20: 0 | N20: =Okt!N20 -> 0 | O20: =Nov!N20 -> 0 | P20: =Dez!N20 -> 0 | Q20: 0 | R20: -182.73
A21: =Jan!M21 -> Geringw. Wirtschaftsgüter | B21: =Jan!N21 -> -505 | C21: =Feb!N21 -> 0 | D21: =Mar!N21 -> 0 | E21: -505 | F21: =Apr!N21 -> 0 | G21: =Mai!N21 -> 0 | H21: =Jun!N21 -> 0 | I21: 0 | J21: =Jul!N21 -> 0 | K21: =Aug!N21 -> 0 | L21: =Sep!N21 -> 0 | M21: 0 | N21: =Okt!N21 -> 0 | O21: =Nov!N21 -> 0 | P21: =Dez!N21 -> 0 | Q21: 0 | R21: -505
A22: =Jan!M22 -> Gewerbl. Sozialversicherung | B22: =Jan!N22 -> 0 | C22: =Feb!N22 -> 0 | D22: =Mar!N22 -> 0 | E22: 0 | F22: =Apr!N22 -> 0 | G22: =Mai!N22 -> 0 | H22: =Jun!N22 -> 0 | I22: 0 | J22: =Jul!N22 -> 0 | K22: =Aug!N22 -> 0 | L22: =Sep!N22 -> 0 | M22: 0 | N22: =Okt!N22 -> 0 | O22: =Nov!N22 -> 0 | P22: =Dez!N22 -> 0 | Q22: 0 | R22: 0
A23: =Jan!M23 -> Div. Steuern u. Abgaben | B23: =Jan!N23 -> 0 | C23: =Feb!N23 -> 0 | D23: =Mar!N23 -> 0 | E23: 0 | F23: =Apr!N23 -> 0 | G23: =Mai!N23 -> 0 | H23: =Jun!N23 -> 0 | I23: 0 | J23: =Jul!N23 -> 0 | K23: =Aug!N23 -> 0 | L23: =Sep!N23 -> 0 | M23: 0 | N23: =Okt!N23 -> 0 | O23: =Nov!N23 -> 0 | P23: =Dez!N23 -> 0 | Q23: 0 | R23: 0
A24: =Jan!M24 -> Sonstige Ausgaben | B24: =Jan!N24 -> 0 | C24: =Feb!N24 -> 0 | D24: =Mar!N24 -> 0 | E24: 0 | F24: =Apr!N24 -> 0 | G24: =Mai!N24 -> 0 | H24: =Jun!N24 -> 0 | I24: 0 | J24: =Jul!N24 -> 0 | K24: =Aug!N24 -> 0 | L24: =Sep!N24 -> 0 | M24: 0 | N24: =Okt!N24 -> 0 | O24: =Nov!N24 -> 0 | P24: =Dez!N24 -> 0 | Q24: 0 | R24: 0
A25: =Jan!M25 -> A-leer1 | B25: =Jan!N25 -> 0 | C25: =Feb!N25 -> 0 | D25: =Mar!N25 -> 0 | E25: 0 | F25: =Apr!N25 -> 0 | G25: =Mai!N25 -> 0 | H25: =Jun!N25 -> 0 | I25: 0 | J25: =Jul!N25 -> 0 | K25: =Aug!N25 -> 0 | L25: =Sep!N25 -> 0 | M25: 0 | N25: =Okt!N25 -> 0 | O25: =Nov!N25 -> 0 | P25: =Dez!N25 -> 0 | Q25: 0 | R25: 0
A26: =Jan!M26 -> A-leer2 | B26: =Jan!N26 -> 0 | C26: =Feb!N26 -> 0 | D26: =Mar!N26 -> 0 | E26: 0 | F26: =Apr!N26 -> 0 | G26: =Mai!N26 -> 0 | H26: =Jun!N26 -> 0 | I26: =SUM(F26:H26) -> 0 | J26: =Jul!N26 -> 0 | K26: =Aug!N26 -> 0 | L26: =Sep!N26 -> 0 | M26: =SUM(J26:L26) -> 0 | N26: =Okt!N26 -> 0 | O26: =Nov!N26 -> 0 | P26: =Dez!N26 -> 0 | Q26: =SUM(N26:P26) -> 0 | R26: =E26+I26+M26+Q26 -> 0
A27: =Jan!M27 -> A-leer3 | B27: =Jan!N27 -> 0 | C27: =Feb!N27 -> 0 | D27: =Mar!N27 -> 0 | E27: 0 | F27: =Apr!N27 -> 0 | G27: =Mai!N27 -> 0 | H27: =Jun!N27 -> 0 | I27: 0 | J27: =Jul!N27 -> 0 | K27: =Aug!N27 -> 0 | L27: =Sep!N27 -> 0 | M27: 0 | N27: =Okt!N27 -> 0 | O27: =Nov!N27 -> 0 | P27: =Dez!N27 -> 0 | Q27: 0 | R27: 0
A28: =Jan!M29 -> Handel | B28: =Jan!O29 -> 620 | C28: =Feb!O29 -> 0 | D28: =Mar!O29 -> 0 | E28: 620 | F28: =Apr!O29 -> 0 | G28: =Mai!O29 -> 0 | H28: =Jun!O29 -> 0 | I28: 0 | J28: =Jul!O29 -> 0 | K28: =Aug!O29 -> 0 | L28: =Sep!O29 -> 0 | M28: 0 | N28: =Okt!O29 -> 0 | O28: =Nov!O29 -> 0 | P28: =Dez!O29 -> 0 | Q28: 0 | R28: =E28+I28+M28+Q28 -> 620
A29: =Jan!M30 -> Dienstleistungen | B29: =Jan!O30 -> 1345.83 | C29: =Feb!O30 -> 0 | D29: =Mar!O30 -> 0 | E29: 1345.83 | F29: =Apr!O30 -> 0 | G29: =Mai!O30 -> 0 | H29: =Jun!O30 -> 0 | I29: 0 | J29: =Jul!O30 -> 0 | K29: =Aug!O30 -> 0 | L29: =Sep!O30 -> 0 | M29: 0 | N29: =Okt!O30 -> 0 | O29: =Nov!O30 -> 0 | P29: =Dez!O30 -> 0 | Q29: 0 | R29: =E29+I29+M29+Q29 -> 1345.83
A30: =Jan!M31 -> Diverse Gutschriften | B30: =Jan!O31 -> 0 | C30: =Feb!O31 -> 0 | D30: =Mar!O31 -> 0 | E30: =SUM(B30:D30) -> 0 | F30: =Apr!O31 -> 0 | G30: =Mai!O31 -> 0 | H30: =Jun!O31 -> 0 | I30: =SUM(F30:H30) -> 0 | J30: =Jul!O31 -> 0 | K30: =Aug!O31 -> 0 | L30: =Sep!O31 -> 0 | M30: =SUM(J30:L30) -> 0 | N30: =Okt!O31 -> 0 | O30: =Nov!O31 -> 0 | P30: =Dez!O31 -> 0 | Q30: =SUM(N30:P30) -> 0 | R30: 0
A31: =Jan!M32 -> E-leer1 | B31: =Jan!O32 -> 0 | C31: =Feb!O32 -> 0 | D31: =Mar!O32 -> 0 | E31: =SUM(B31:D31) -> 0 | F31: =Apr!O32 -> 0 | G31: =Mai!O32 -> 0 | H31: =Jun!O32 -> 0 | I31: =SUM(F31:H31) -> 0 | J31: =Jul!O32 -> 0 | K31: =Aug!O32 -> 0 | L31: =Sep!O32 -> 0 | M31: =SUM(J31:L31) -> 0 | N31: =Okt!O32 -> 0 | O31: =Nov!O32 -> 0 | P31: =Dez!O32 -> 0 | Q31: =SUM(N31:P31) -> 0 | R31: 0
A32: =Jan!M33 -> E-leer2 | B32: =Jan!O33 -> 0 | C32: =Feb!O33 -> 0 | D32: =Mar!O33 -> 0 | E32: =SUM(B32:D32) -> 0 | F32: =Apr!O33 -> 0 | G32: =Mai!O33 -> 0 | H32: =Jun!O33 -> 0 | I32: =SUM(F32:H32) -> 0 | J32: =Jul!O33 -> 0 | K32: =Aug!O33 -> 0 | L32: =Sep!O33 -> 0 | M32: =SUM(J32:L32) -> 0 | N32: =Okt!O33 -> 0 | O32: =Nov!O33 -> 0 | P32: =Dez!O33 -> 0 | Q32: =SUM(N32:P32) -> 0 | R32: 0
A33: =Jan!M34 -> E-leer3 | B33: =Jan!O34 -> 0 | C33: =Feb!O34 -> 0 | D33: =Mar!O34 -> 0 | E33: =SUM(B33:D33) -> 0 | F33: =Apr!O34 -> 0 | G33: =Mai!O34 -> 0 | H33: =Jun!O34 -> 0 | I33: =SUM(F33:H33) -> 0 | J33: =Jul!O34 -> 0 | K33: =Aug!O34 -> 0 | L33: =Sep!O34 -> 0 | M33: =SUM(J33:L33) -> 0 | N33: =Okt!O34 -> 0 | O33: =Nov!O34 -> 0 | P33: =Dez!O34 -> 0 | Q33: =SUM(N33:P33) -> 0 | R33: =E33+I33+M33+Q33 -> 0
A34: Summen bzw. Angaben für Ust-VA | R34: =B34+C34+D34+F34+G34+H34+J34+K34+L34+N34+O34+P34 -> 0
A35: Umsätze brutto | B35: =Jan!F50 -> 2235 | C35: =Feb!F50 -> 0 | D35: =Mar!F50 -> 0 | E35: 2235 | F35: =Apr!F50 -> 0 | G35: =Mai!F50 -> 0 | H35: =Jun!F50 -> 0 | I35: 0 | J35: =Jul!F50 -> 0 | K35: =Aug!F50 -> 0 | L35: =Sep!F50 -> 0 | M35: 0 | N35: =Okt!F50 -> 0 | O35: =Nov!F50 -> 0 | P35: =Dez!F50 -> 0 | Q35: 0 | R35: =E35+I35+M35+Q35 -> 2235
A36: =Jan!M35 -> Summe Einnahmen *) | B36: =Jan!O35 -> 1965.83 | C36: =Feb!O35 -> 0 | D36: =Mar!O35 -> 0 | E36: 1965.83 | F36: =Apr!O35 -> 0 | G36: =Mai!O35 -> 0 | H36: =Jun!O35 -> 0 | I36: 0 | J36: =Jul!O35 -> 0 | K36: =Aug!O35 -> 0 | L36: =Sep!O35 -> 0 | M36: 0 | N36: =Okt!O35 -> 0 | O36: =Nov!O35 -> 0 | P36: =Dez!O35 -> 0 | Q36: 0 | R36: =E36+I36+M36+Q36 -> 1965.83
A37: *) Einnahmen mit 0% | B37: =Jan!O36 -> 620 | C37: =Feb!O36 ->  | D37: =Mar!O36 ->  | E37: =SUM(B37:D37) -> 620 | F37: =Apr!O36 ->  | G37: =Mai!O36 ->  | H37: =Jun!O36 ->  | I37: =SUM(F37:H37) -> 0 | J37: =Jul!O36 ->  | K37: =Aug!O36 ->  | L37: =Sep!O36 ->  | M37: =SUM(J37:L37) -> 0 | N37: =Okt!O36 ->  | O37: =Nov!O36 ->  | P37: =Dez!O36 ->  | Q37: =SUM(N37:P37) -> 0 | R37: =E37+I37+M37+Q37 -> 620
A38: *) Einnahmen mit 5% | B38: =Jan!O37 -> 0 | C38: =Feb!O37 ->  | D38: =Mar!O37 ->  | E38: =SUM(B38:D38) -> 0 | F38: =Apr!O37 ->  | G38: =Mai!O37 ->  | H38: =Jun!O37 ->  | I38: =SUM(F38:H38) -> 0 | J38: =Jul!O37 ->  | K38: =Aug!O37 ->  | L38: =Sep!O37 ->  | M38: =SUM(J38:L38) -> 0 | N38: =Okt!O37 ->  | O38: =Nov!O37 ->  | P38: =Dez!O37 ->  | Q38: =SUM(N38:P38) -> 0 | R38: =E38+I38+M38+Q38 -> 0
A39: *) Einnahmen mit 10% | B39: =Jan!O38 -> 0 | C39: =Feb!O38 ->  | D39: =Mar!O38 ->  | E39: 0 | F39: =Apr!O38 ->  | G39: =Mai!O38 ->  | H39: =Jun!O38 ->  | I39: 0 | J39: =Jul!O38 ->  | K39: =Aug!O38 ->  | L39: =Sep!O38 ->  | M39: 0 | N39: =Okt!O38 ->  | O39: =Nov!O38 ->  | P39: =Dez!O38 ->  | Q39: 0 | R39: 0
A40: *) Einnahmen mit 13% | B40: =Jan!O39 -> 0 | C40: =Feb!O39 ->  | D40: =Mar!O39 ->  | E40: =SUM(B40:D40) -> 0 | F40: =Apr!O39 ->  | G40: =Mai!O39 ->  | H40: =Jun!O39 ->  | I40: 0 | J40: =Jul!O39 ->  | K40: =Aug!O39 ->  | L40: =Sep!O39 ->  | M40: 0 | N40: =Okt!O39 ->  | O40: =Nov!O39 ->  | P40: =Dez!O39 ->  | Q40: 0 | R40: 0
A41: *) Einnahmen mit 20% | B41: =Jan!O40 -> 1345.83 | C41: =Feb!O40 ->  | D41: =Mar!O40 ->  | E41: =SUM(B41:D41) -> 1345.83 | F41: =Apr!O40 ->  | G41: =Mai!O40 ->  | H41: =Jun!O40 ->  | I41: 0 | J41: =Jul!O40 ->  | K41: =Aug!O40 ->  | L41: =Sep!O40 ->  | M41: 0 | N41: =Okt!O40 ->  | O41: =Nov!O40 ->  | P41: =Dez!O40 ->  | Q41: 0 | R41: 1345.83
A42: =Jan!M41 -> Summe Ausgaben | B42: =Jan!N41 -> -2316.4 | C42: =Feb!N41 -> 0 | D42: =Mar!N41 -> 0 | E42: -2316.4 | F42: =Apr!N41 -> 0 | G42: =Mai!N41 -> 0 | H42: =Jun!N41 -> 0 | I42: 0 | J42: =Jul!N41 -> 0 | K42: =Aug!N41 -> 0 | L42: =Sep!N41 -> 0 | M42: 0 | N42: =Okt!N41 -> 0 | O42: =Nov!N41 -> 0 | P42: =Dez!N41 -> 0 | Q42: 0 | R42: -2316.4
A43: Ergebnis | B43: =Jan!N42 -> -350.57 | C43: =Feb!N42 -> 0 | D43: =Mar!N42 -> 0 | E43: -350.57 | F43: =Apr!N42 -> 0 | G43: =Mai!N42 -> 0 | H43: =Jun!N42 -> 0 | I43: 0 | J43: =Jul!N42 -> 0 | K43: =Aug!N42 -> 0 | L43: =Sep!N42 -> 0 | M43: 0 | N43: =Okt!N42 -> 0 | O43: =Nov!N42 -> 0 | P43: =Dez!N42 -> 0 | Q43: 0 | R43: -350.57
A44: Vorsteuer | B44: =Jan!O43 -> 318.86 | C44: =Feb!O43 -> 0 | D44: =Mar!O43 -> 0 | E44: 318.86 | F44: =Apr!O43 -> 0 | G44: =Mai!O43 -> 0 | H44: =Jun!O43 -> 0 | I44: 0 | J44: =Jul!O43 -> 0 | K44: =Aug!O43 -> 0 | L44: =Sep!O43 -> 0 | M44: 0 | N44: =Okt!O43 -> 0 | O44: =Nov!O43 -> 0 | P44: =Dez!O43 -> 0 | Q44: 0 | R44: 318.86
A45: =Jan!M44 -> Umsatzsteuer | B45: =Jan!O44 -> 269.17 | C45: =Feb!O44 -> 0 | D45: =Mar!O44 -> 0 | E45: 269.17 | F45: =Apr!O44 -> 0 | G45: =Mai!O44 -> 0 | H45: =Jun!O44 -> 0 | I45: 0 | J45: =Jul!O44 -> 0 | K45: =Aug!O44 -> 0 | L45: =Sep!O44 -> 0 | M45: 0 | N45: =Okt!O44 -> 0 | O45: =Nov!O44 -> 0 | P45: =Dez!O44 -> 0 | Q45: 0 | R45: 269.17
A46: Zahllast FA | B46: =Jan!O45 -> -49.69 | C46: =Feb!O45 -> 0 | D46: =Mar!O45 -> 0 | E46: -49.69 | F46: =Apr!O45 -> 0 | G46: =Mai!O45 -> 0 | H46: =Jun!O45 -> 0 | I46: 0 | J46: =Jul!O45 -> 0 | K46: =Aug!O45 -> 0 | L46: =Sep!O45 -> 0 | M46: 0 | N46: =Okt!O45 -> 0 | O46: =Nov!O45 -> 0 | P46: =Dez!O45 -> 0 | Q46: 0 | R46: -49.69
A49: Umsatz- & Ergebnisentwicklung
A70: AUSGABEN | J70: EINNAHMEN
